{"text_format":"1","workbook":"xlsx","n_sheets":44,"sheets":["Menu_principal","Menu_NIT","demanda_recebida","demanda patente","Premio Inova","ações_NIT","Menu_IC","Demanda_IC","Alunos_em_IC","Bolsas_IC","IC_sem_bolsa","Historico_IC","Grafico_historico","Menu_Pesquisa","Projetos_2022","Projetos por tipo","Recurso_proj_indiv","Historico_projeto","Grafico_projeto","GP","Bolsista_Prod","Producao_docente","Producao_Cepex","Menu_pos","Ofertados","Historico","Grafico_historico_pos","Dados_stricto","demanda_stricto","demanda_lato","Nota CAPES","Internacionalização","Apoio_publicacao","Historico_bolsas","Graficos_bolsas","Detalhamento_bolsa_CAPES_PIBAP","Bolsas_CNPq_Fundect","Convenio_FAPEMS","Convenio FUNAEPE","Convenio_Proap_CAPES","ProfHistoria","ProfLetras CG","ProfLetras Ddos","ProfMat Ddos"],"not_rendered":{"charts":20,"images":5,"macros":1,"external_links":0,"defined_names":0,"comments":0,"pivot_tables":0},"unopened":[],"bounds":{"document_bytes":16777216,"sheet_cells":100000,"rows_first":2000,"rows_last":500,"rows_between":2000,"halvings":0,"cell_chars":16384,"cell_head_chars":4096},"cells_cut":0,"cells_raw":0,"read":"whole","date_system":"1900"}

{"sheet":"Menu_principal","index":0,"n_rows":31,"n_cols":13,"rows_kept":31,"cut":false,"hidden":false,"merged":[[43,18,46,18],[47,18,57,18],[58,18,59,18],[4,18,7,18],[8,18,10,18],[11,18,19,18],[20,18,25,18],[26,18,42,18]]}
[]
[]
[]
[]
[]
[]
[]
[]
[]
[]
[]
[]
[]
[]
[]
[]
[]
[]
[]
[]
[]
[]
[]
[]
[]
[]
[]
[]
[]
[]
[null,null,null,null,null,null,null,null,null,null,null,null,"Desenvolvido por Heloiza C. Holgado/PROPPI"]

{"sheet":"Menu_NIT","index":1,"n_rows":0,"n_cols":0,"rows_kept":0,"cut":false,"hidden":false,"merged":[]}

{"sheet":"demanda_recebida","index":2,"n_rows":33,"n_cols":10,"rows_kept":33,"cut":false,"hidden":false,"merged":[[7,7,7,9],[8,1,8,6],[16,1,17,1],[14,1,15,3],[16,6,17,6],[14,6,15,8],[11,1,11,5],[16,2,16,4],[16,7,16,9]]}
[]
[]
[]
[]
[]
[]
[]
[]
[]
[]
[]
[null,"Objetivo: Indicar a demanda do Núcleo de Inovação Tecnológica"]
[]
[]
[null,"Quadro – Demandas formais recebidas pelo NIT -  por área de conhecimento ",null,null,null,null,"Quadro -  Demandas formais recebidas pelo NIT - por subcategorias de proteção da propriedade intelectual*"]
[]
[null,"Áreas de Conhecimento","Ano de recebimento",null,null,null,"Subcategorias ","Ano de recebimento"]
[null,null,2020,2021,"2022*",null,null,2020,2021,"2022**"]
[null,"Ciências Exatas e da Terra",3,4,1,null,"Direito de autor",4,7]
[null,"Ciências Biológicas ",1,2,null,null,"Direitos conexos"]
[null,"Engenharias",1,2,null,null,"Programa de computador",3,3,1]
[null,"Ciências da Saúde",1,1,1,null,"Marca",2,null,1]
[null,"Ciências Agrárias",1,4,null,null,"Patente",4,4]
[null,"Ciências Sociais Aplicadas",1,1,null,null,"Desenho industrial"]
[null,"Ciências Humanas",3,1,null,null,"Indicação geográfica"]
[null,"Linguística, Letras e Artes",2,1,null,null,"Segredo industrial e Repressão à concorrência desleal"]
[null,"Total",13,16,{"$f":"SUM(E19:E22)","v":2},null,"Topografia de circuito integrado"]
[null,"*dados referem-se ao 1º semestre de 2022",null,null,null,null,"Cultivar",null,1]
[null,null,null,null,null,null,"Conhecimento Tradicional ",null,1]
[null,null,null,null,null,null,"Total",13,16,{"$f":"SUM(J19:J29)","v":2}]
[null,null,null,null,null,null,"*Incluindo pedidos de esclarecimentos"]
[null,null,null,null,null,null,"**Dados referem-se ao 1º semestre de 2022"]
[null,"Fonte:NIT julho/2022"]

{"sheet":"demanda patente","index":3,"n_rows":30,"n_cols":8,"rows_kept":30,"cut":false,"hidden":false,"merged":[[13,1,13,5],[24,1,25,7],[4,1,4,7],[5,1,5,7],[6,9,6,10],[10,1,10,8]]}
[]
[]
[]
[]
[]
[]
[]
[]
[]
[]
[null,"Objetivo: Informar a demanda qualificada por patentes*"]
[]
[]
[null,"Quadro - Registra as etapas das solicitações recebidas  até o primeiro de 2022."]
[null,"Áreas de Conhecimento","Pareceres emitidos em 2020","Pareceres emitidos em 2021","Pareceres emitidos em 2022","Etapa de adequações às formalidades do INPI","Peticionamento INPI","Deferimento INPI"]
[null,"Ciências Exatas e da Terra",3,2,1,4,"1**"]
[null,"Ciências Biológicas "]
[null,"Engenharias",1,2,null,3]
[null,"Ciências da Saúde"]
[null,"Ciências Agrárias",null,2,null,1,"1**"]
[null,"Ciências Sociais Aplicadas"]
[null,"Ciências Humanas"]
[null,"Linguística, Letras e Artes"]
[null,"Total",4,6,{"$f":"E16","v":1},8,2]
[null,"*Demanda qualificada: é a que atende aos critérios básicos de novidade, atividade inventiva e aplicação industrial, que estão na etapa de adequações às formalidades do INPI"]
[]
[null,"** Peticionamento realizado em parceria com outras ICTs"]
[]
[]
[null,"Fonte: NIT julho/2022"]

{"sheet":"Premio Inova","index":4,"n_rows":43,"n_cols":22,"rows_kept":43,"cut":false,"hidden":false,"merged":[[14,16,14,17],[14,18,14,19],[14,20,14,21],[14,15,15,15],[12,15,13,21],[32,12,32,13],[30,1,33,1],[31,2,31,5],[31,6,31,9],[31,10,31,13],[32,2,32,3],[32,4,32,5],[32,6,32,7],[32,8,32,9],[32,10,32,11],[30,2,30,13],[5,13,5,14],[14,1,17,1],[13,1,13,13],[14,2,14,13],[15,2,15,5],[15,6,15,9],[15,10,15,13],[16,6,16,7],[16,8,16,9],[16,10,16,11],[16,12,16,13],[16,2,16,3],[16,4,16,5],[11,1,11,14],[9,2,9,14]]}
[]
[]
[]
[]
[]
[]
[]
[]
[]
[null,null,"PRÊMIO INOVA UEMS 2022 SERÁ REALIZADO NO SEGUNDO SEMESTRE DE 2022"]
[]
[null,"Objetivo: Informar a quantidade de inscritos e premidados no Prêmio Inova UEMS"]
[null,null,null,null,null,null,null,null,null,null,null,null,null,null,null,"Quadro – Quadro síntese (quantidades totais) inscritos e premiados no Prêmio Inova UEMS"]
[null,"Quadro – Dethalhamento de inscritos no Prêmio Inova UEMS, por área de conhecimento"]
[null,"Área de conhecimento ","Projetos inscritos ",null,null,null,null,null,null,null,null,null,null,null,null,"Área de conhecimento","Inscritos ",null,"Premiados ",null,"Menção Honrosa "]
[null,null,"Direito Autoral ",null,null,null,"Propriedade Industrial",null,null,null,"Proteção Sui Generis",null,null,null,null,null,2020,2021,2020,2021,2020,2021]
[null,null,"Modalidade Faisca",null,"Modalidade Ascenção",null,"Modalidade Faisca",null,"Modalidade Ascenção",null,"Modalidade Faisca",null,"Modalidade Ascenção",null,null,"Ciências Exatas e da Terra",1,1,null,null,1]
[null,null,2020,2021,2020,2021,2020,2021,2020,2021,2020,2021,2020,2021,null,"Ciências Biológicas ",null,1]
[null,"Ciências Exatas e da Terra",null,1,1,null,null,null,null,null,null,null,null,null,null,"Engenharias",1,6,1,4]
[null,"Ciências Biológicas ",null,null,null,null,null,null,null,null,null,1,null,null,null,"Ciências da Saúde",2,1,2,null,null,1]
[null,"Engenharias",null,null,null,1,null,3,1,2,null,null,null,null,null,"Ciências Agrárias",6,16,4,6,2,5]
[null,"Ciências da Saúde",null,null,2,1,null,null,null,null,null,null,null,null,null,"Ciências Sociais Aplicadas",null,2]
[null,"Ciências Agrárias",null,3,3,3,3,8,null,null,null,2,null,null,null,"Ciências Humanas",null,1]
[null,"Ciências Sociais Aplicadas",null,1,null,null,null,1,null,null,null,null,null,null,null,"Linguística, Letras e Artes",null,1,null,1]
[null,"Ciências Humanas",null,1,null,null,null,null,null,null,null,null,null,null,null,"Interdisciplinar",7,4,6,3,1]
[null,"Linguística, Letras e Artes",null,1,null,null,null,null,null,null,null,null,null,null,null,"Total geral ",17,33,13,14,4,6]
[null,"Interdisciplinar",3,1,null,2,null,null,4,null,null,1]
[]
[]
[null,"Quadro – Dethalhamento dos premiados no Prêmio Inova UEMS, por área de conhecimento"]
[null,"Área de conhecimento ","Projetos inscritos "]
[null,null,"Direito Autoral ",null,null,null,"Propriedade Industrial",null,null,null,"Proteção Sui Generis"]
[null,null,"Modalidade Faisca",null,"Modalidade Ascenção",null,"Modalidade Faisca",null,"Modalidade Ascenção",null,"Modalidade Faisca",null,"Modalidade Ascenção"]
[null,null,2020,2021,2020,2021,2020,2021,2020,2021,2020,2021,2020,2021]
[null,"Ciências Exatas e da Terra",null,1]
[null,"Ciências Biológicas "]
[null,"Engenharias",null,null,null,null,null,2,1,2]
[null,"Ciências da Saúde",null,null,2]
[null,"Ciências Agrárias",null,2,2,1,2,1,null,null,null,2]
[null,"Ciências Sociais Aplicadas"]
[null,"Ciências Humanas"]
[null,"Linguística, Letras e Artes",null,null,null,1]
[null,"Interdisciplinar",2,1,null,1,null,null,4,null,null,1]

{"sheet":"ações_NIT","index":5,"n_rows":23,"n_cols":5,"rows_kept":23,"cut":false,"hidden":false,"merged":[[12,1,13,1],[8,1,8,8],[9,1,9,6],[11,1,11,3],[12,2,12,4]]}
[]
[]
[]
[]
[]
[]
[]
[]
[null,"Objetivo: Indicar o quantitativo de ações desenvolvidas pelo Núcleo de Inovação Tecnológica da UEMS "]
[]
[]
[null,"Quadro - Quantidade de ações promovidas pelo NIT"]
[null,"Áreas de Conhecimento","Ano "]
[null,null,2020,2021,"2022*"]
[null,"Encontros/ Eventos",62,71,12]
[null,"Workshop/Oficina",7,5,"10**"]
[null,"Palestras",4,5,2]
[null,"Prospecção de parcerias",4,8,1]
[null,"Total",77,89,25]
[null,"*dados referem-se ao 1º semestre de 2022"]
[null,"** Diálogos de Inovação e Internacionalização realizados até 30/07"]
[]
[null,"Fonte: NIT julho/2022"]

{"sheet":"Menu_IC","index":6,"n_rows":0,"n_cols":0,"rows_kept":0,"cut":false,"hidden":false,"merged":[]}

{"sheet":"Demanda_IC","index":7,"n_rows":38,"n_cols":11,"rows_kept":38,"cut":false,"hidden":false,"merged":[[21,1,23,1],[21,2,21,4],[21,5,21,7],[21,8,21,10],[22,5,22,7],[22,8,22,10],[22,2,22,4],[13,2,13,4],[14,2,14,4],[15,2,15,6],[16,2,16,6],[17,2,17,6]]}
[]
[]
[]
[]
[]
[]
[]
[]
[]
[]
[]
[null,"Objetivo: Informar a demanda e implantações de bolsas de Iniciação Científica"]
[]
[null,"Síntese: ","Demanda por bolsas: 369"]
[null,null,"Bolsas disponíveis: 363"]
[null,null,"Bolsas implantadas: 354 (9 alunos não optaram pela bolsa)"]
[null,null,"Bolsas canceladas após a implantação: 4"]
[null,null,"Projetos de IC com bolsa em execução em dez/21: 350"]
[]
[]
[null,"Quadro – Demandas e as concessões de bolsas de Iniciação Científica por modalidade"]
[null,"Áreas de Conhecimento","2021/22",null,null,"2021/22",null,null,"2021/22"]
[null,null,"PIBIC CNPq/UEMS",null,null,"PIBITI CNPq",null,null,"PIBIC AAF"]
[null,null,"Inscritos","Demanda qualificada*","Bolsas implantadas","Inscritos","Demanda qualificada*","Bolsas implantadas","Inscritos","Demanda qualificada*","Bolsas implantadas"]
[null,"Ciências Exatas e da Terra",34,30,"28*","-",0,0,0,0,0]
[null,"Ciências Biológicas ",10,10,10,"-",0,0,0,0,0]
[null,"Engenharias",16,16,16,2,2,2,0,0,0]
[null,"Ciências da Saúde",60,59,"57*",1,1,1,2,2,2]
[null,"Ciências Agrárias",117,115,111,6,6,6,5,5,5]
[null,"Ciências Sociais Aplicadas",51,50,"50*","-",0,0,6,6,6]
[null,"Ciências Humanas",39,38,"31 *","-",0,0,5,5,5]
[null,"Linguística, Letras e Artes",24,24,24,"-",0,0,0,0,0]
[null,"Total",351,342,327,9,9,9,18,18,18]
[null,"*Demanda qualificada se refere a projetos aprovados, aptos a concorrem às bolsas"]
[null,"OBS: Período compreendido da bolsa: 1 de agosto de 2021 a 31 julho de 2022"]
[]
[]
[null,"Fonte: Divisão de Pesquisa, dezembro 2021"]

{"sheet":"Alunos_em_IC","index":8,"n_rows":42,"n_cols":9,"rows_kept":42,"cut":false,"hidden":false,"merged":[]}
[]
[]
[]
[]
[]
[]
[]
[]
[]
[]
[]
[null,"Objetivo: Aferir o envolvimento do corpo discente da UEMS em projetos de IC."]
[]
[null,"Fórmula de Cálculo: IALIC = NALIC/NALGx100"]
[]
[null,"NALIC = n° de alunos com projetos de IC (alunos bolsistas PIBIC CNPq/UEMS, PIBITI CNPq, PIBIC AAF e IC sem bolsa)"]
[null,"NALG = nº total de alunos de graduação matriculados na Unidade Universitária"]
[]
[]
[null,"Quadro - Percentual de envolvimento dos alunos da graduação em projetos de IC*"]
[null,"Unidades Universitárias","2016 (%)","2017 (%)","2018(%)","2019(%)",2020,2021,2022]
[null,"Aquidauana",10.6687898089172,9.3354430379746791,10.397553516819601,11.8780096308186,0.109215017064846,0.10050000000000001,0.128]
[null,"Amambai",7.4626865671641802,1.8779342723004699,5.0925925925925899,3.7735849056603801,2.8846153846153799E-2,2.1999999999999999E-2,2.75E-2]
[null,"Campo Grande",4.4291338582677202,5.7170542635658901,5.3389830508474603,5.12,5.5891238670694898E-2,6.9099999999999995E-2,6.0699999999999997E-2]
[null,"Cassilândia",13.2791327913279,7.9601990049751201,7.3791348600508897,11.1979166666667,9.1358024691357995E-2,0.1135,0.1187]
[null,"Coxim",0.67567567567567599,0.60240963855421703,"-",2.4193548387096802,1.35135135135135E-2,1.9199999999999998E-2,"-"]
[null,"Dourados",7.0285714285714302,5.4850177755205696,5.3380782918149503,5.9517701385325799,6.5070275897969806E-2,6.8400000000000002E-2,6.4500000000000002E-2]
[null,"Glória de Dourados",0.92592592592592604,2.0833333333333299,1.98675496688742,2.2727272727272698,2.56,"-","-"]
[null,"Ivinhema",3.4482758620689702,2.5862068965517202,2.7272727272727302,2.4390243902439002,8.9743589743589702E-2,4.6199999999999998E-2,3.0800000000000001E-2]
[null,"Jardim ",3.0821917808219199,2.3333333333333299,2.8753993610223598,2.2875816993464002,1.45454545454545E-2,1.6899999999999998E-2,8.3999999999999995E-3]
[null,"Maracaju","-","-","-","-","-","-","-"]
[null,"Mundo Novo",8.5427135678392006,7.7981651376146797,9.6638655462184904,11.330049261083699,0.118279569892473,0.12570000000000001,8.3799999999999999E-2]
[null,"Naviraí",5.6892778993435504,5.5201698513800403,6.4049586776859497,6.6265060240963898,9.375E-2,8.4500000000000006E-2,7.0400000000000004E-2]
[null,"Nova Andradina",1.93236714975845,0.99502487562189001,2.4752475247524801,2.9585798816567999,3.2300000000000002E-2,"-",1.0500000000000001E-2]
[null,"Paranaíba",3.86329866270431,3.30827067669173,3.3282904689863799,7.1651090342679096,6.8910256410256401E-2,7.2300000000000003E-2,8.0699999999999994E-2]
[null,"Ponta Porã",1.98675496688742,2.6915113871635601,2.2371364653243799,1.3729977116704799,2.5974025974026E-3,"-",1.7999999999999999E-2]
[null,"Educação a Distancia**",null,null,null,null,null,null,2.6700000000000002E-2]
[null,"Total",73.014795945273804,58.294073484581197,65.245268050275598,76.793211455480801,79.290000000000006,73.83,72.87]
[null,"*os dados que servem de base para os cálculos são referentes ao primeiro semestre de cada ano, quando as bolsas são implantadas."]
[null,"**O cálculo dos alunos EAD foram feitos com base nos alunos de Bela Vista (75), o total geral de alunos na EAD é de 823"]
[]
[null,"Fonte: Divisão de Pesquisa, julho 2022"]

{"sheet":"Bolsas_IC","index":9,"n_rows":76,"n_cols":12,"rows_kept":76,"cut":false,"hidden":false,"merged":[[73,8,73,9],[14,8,15,8],[14,10,14,11],[14,9,15,9],[35,1,36,5],[37,1,38,1],[37,4,37,5],[37,2,37,3],[14,1,15,1],[14,2,14,3],[14,4,14,5]]}
[]
[]
[]
[]
[]
[]
[]
[]
[]
[]
[null,"Objetivo: Informar o número de alunos da graduação bolsistas (PIBIC CNPq/UEMS, PIBITI CNPq e PIBIC AAF)"]
[]
[]
[null,"Quadro – Bolsas de IC disponibilizadas aos alunos de graduação - por Unidade Universitária ",null,null,null,null,null,null,"Quadro - Quantitativo de bolsas de IC disponibilizadas aos alunos de graduação - por Curso "]
[null,"Unidade Universitária","ago/2020 a jul/21",null,"ago/2021 a jul/22",null,null,null,"Unidade Universitária ","Curso/Graduação","ago/2021 a jul/22"]
[null,null,"Aprovadas","Canceladas","Aprovadas","Canceladas",null,null,null,null,"Aprovadas","Canceladas"]
[null,"Aquidauana",51,2,68,1,null,null,"AMAMBAI","Ciências Sociais","-","-"]
[null,"Amambai",4,1,3,"-",null,null,null,"História",3,"-"]
[null,"Campo Grande",56,6,60,"-",null,null,"AQUIDAUANA","Agronomia",20,"-"]
[null,"Cassilândia",36,"-",40,"-",null,null,null,"Engenharia Florestal",16]
[null,"Coxim",1,"-","-","-",null,null,null,"Zootecnia",32,1]
[null,"Dourados",97,5,97,"-",null,null,"CAMPO GRANDE\n","Artes Cênicas",9,"-"]
[null,"Glória de Dourados","-","-","-","-",null,null,null,"Geografia",16,"-"]
[null,"Ivinhema",2,"-",2,"-",null,null,null,"Geografia Licenciatura","-","-"]
[null,"Jardim ",2,"-","-","-",null,null,null,"Letras Bacharel","-","-"]
[null,"Maracaju","-","-","-","-",null,null,null,"Letras Port./Inglês","-","-"]
[null,"Mundo Novo",19,2,14,"-",null,null,null,"Letras Port./Esp.",2,"-"]
[null,"Naviraí",32,3,30,"-",null,null,null,"Medicina",35,"-"]
[null,"Nova Andradina","-","-",1,"-",null,null,null,"Pedagogia","-","-"]
[null,"Paranaíba",35,4,40,3,null,null,null,"Turismo","-","-"]
[null,"Ponta Porã","-","-",6,"-",null,null,"CASSILÂNDIA","Agronomia",40,"-"]
[null,"Educação a distância","-","-",2,"-",null,null,null,"Letras ","-","-"]
[null,"Total",335,23,363,4,null,null,null,"Matemática","-","-"]
[null,null,null,null,null,null,null,null,"COXIM","Ciências Biológicas",0,"-"]
[null,null,null,null,null,null,null,null,null,"Gestão Ambiental","-","-"]
[null,"Quadro – Bolsas de IC disponibilizadas aos alunos de graduação - por área do conhecimento ",null,null,null,null,null,null,"DOURADOS","Ciências da Computação",2,"-"]
[null,null,null,null,null,null,null,null,null,"Ciências Biológicas Bacharelado",1,"-"]
[null,"Áreas de Conhecimento","ago/2020 a jul//2021 ",null,"ago/2021 a jul/22",null,null,null,null,"Ciências Biológicas Licenciatura",2,"-"]
[null,null,"Aprovadas","Canceladas","Aprovadas","Canceladas",null,null,null,"Direito",9,"-"]
[null,"Ciências Exatas e da Terra",43,4,31,"-",null,null,null,"Enfermagem",29,"-"]
[null,"Ciências Biológicas ",22,1,10,"-",null,null,null,"Engenharia Ambiental e Sanitária",11,"-"]
[null,"Engenharias",15,1,18,"-",null,null,null,"Engenharia Física",8,"-"]
[null,"Ciências da Saúde",36,"-",60,"-",null,null,null,"Física",2,"-"]
[null,"Ciências Agrárias",101,3,122,1,null,null,null,"Letras Port./Inglês",7,"-"]
[null,"Ciências Sociais Aplicadas",42,6,59,3,null,null,null,"Letras  Port./ Espanhol",7,"-"]
[null,"Ciências Humanas",52,4,39,"-",null,null,null,"Matemática","-","-"]
[null,"Linguística, Letras e Artes",24,4,24,"-",null,null,null,"Pedagogia",7,"-"]
[null,"Total",335,23,363,4,null,null,null,"Química Licenciatura","-","-"]
[null,null,null,null,null,null,null,null,null,"Química Industrial",6,"-"]
[null,null,null,null,null,null,null,null,null,"Sistema de Informação",2,"-"]
[null,"Fonte: Divisão de Pesquisa, dezembro 2021",null,null,null,null,null,null,null,"Turismo",4,"-"]
[null,null,null,null,null,null,null,null,"GLÓRIA DE DOURADOS","Produção Sucroalcooleira","-","-"]
[null,null,null,null,null,null,null,null,null,"Tecnologia em Agroecologia","-","-"]
[null,null,null,null,null,null,null,null,"IVINHEMA","Ciências Biológicas Bacharelado","-","-"]
[null,null,null,null,null,null,null,null,null,"Ciências Biológicas Licenciatura",2,"-"]
[null,null,null,null,null,null,null,null,"JARDIM","Geografia Licenciatura","-","-"]
[null,null,null,null,null,null,null,null,null,"Letras Port./Inglês","-","-"]
[null,null,null,null,null,null,null,null,"MARACAJU","Administração","-","-"]
[null,null,null,null,null,null,null,null,null,"Pedagogia","-","-"]
[null,null,null,null,null,null,null,null,"MUNDO NOVO","Ciências Biológicas Licenciatura",10,"-"]
[null,null,null,null,null,null,null,null,null,"Tecnologia Gestão Ambiental",4,"-"]
[null,null,null,null,null,null,null,null,"NAVIRAÍ","Química",9,"-"]
[null,null,null,null,null,null,null,null,null,"Engenharia De Alimentos",13,"-"]
[null,null,null,null,null,null,null,null,null,"Direito",8,"-"]
[null,null,null,null,null,null,null,null,"NOVA ANDRADINA","Matemática",1,"-"]
[null,null,null,null,null,null,null,null,null,"Computação","-","-"]
[null,null,null,null,null,null,null,null,"PARANAÍBA","Ciências Sociais",6,"-"]
[null,null,null,null,null,null,null,null,null,"Ciências Sociais Licenciatura","-","-"]
[null,null,null,null,null,null,null,null,null,"Direito",33,3]
[null,null,null,null,null,null,null,null,null,"Pedagogia",1,"-"]
[null,null,null,null,null,null,null,null,"PONTA PORÃ","Administração de Empresas","-","-"]
[null,null,null,null,null,null,null,null,null,"Ciências Contábeis",1,"-"]
[null,null,null,null,null,null,null,null,null,"Ciências Econômica",5,"-"]
[null,null,null,null,null,null,null,null,"TOTAL",null,363,4]
[]
[null,null,null,null,null,null,null,null,"Fonte: Divisão de Pesquisa, dezembro 2021"]

{"sheet":"IC_sem_bolsa","index":10,"n_rows":35,"n_cols":11,"rows_kept":35,"cut":false,"hidden":false,"merged":[[16,1,17,1],[16,2,16,4],[14,1,15,4],[16,7,17,7],[16,8,16,10],[14,7,15,10]]}
[]
[]
[]
[]
[]
[]
[]
[]
[]
[]
[null,"Objetivo: Informar o número de alunos na graduação envolvidos com projetos de IC sem bolsa"]
[]
[]
[]
[null,"Quadro - Quantitativo de alunos de graduação que participam da Modalidade IC sem bolsa - por Unidade Universitária ",null,null,null,null,null,"Quadro - Quantitativo de alunos que participam da Modalidade IC sem bolsa - por área de conhecimento"]
[]
[null,"Unidades Universitárias","2022*",null,null,null,null,"Áreas de conhecimento","2022*"]
[null,null,"Execução","Cancelados","Finalizados",null,null,null,"Execução","Cancelados","Finalizados"]
[null,"Aquidauana",2,0,1,null,null,"Ciências Exatas e da Terra",4,1,4]
[null,"Amambai",1,0,1,null,null,"Ciências Biológicas ",3,1,0]
[null,"Campo Grande",10,1,5,null,null,"Engenharias",1,0,0]
[null,"Cassilândia",1,1,2,null,null,"Ciências da Saúde",0,0,0]
[null,"Coxim",0,0,0,null,null,"Ciências Agrárias",2,1,3]
[null,"Dourados",5,1,5,null,null,"Ciências Sociais Aplicadas",12,2,0]
[null,"Glória de Dourados",0,0,0,null,null,"Ciências Humanas",4,1,7]
[null,"Ivinhema",0,0,0,null,null,"Linguística, Letras e Artes",5,0,0]
[null,"Jardim ",1,0,0,null,null,"Total",{"$f":"SUM(I19:I26)","v":31},{"$f":"SUM(J19:J26)","v":6},{"$f":"SUM(K19:K26)","v":14}]
[null,"Maracaju",0,0,0,null,null,"*Dados referentes ao 1º semestre de 2022"]
[null,"Mundo Novo",1,1,0]
[null,"Naviraí",2,0,0]
[null,"Nova Andradina",0,0,0,null,null,"Fonte: Divisão de Pesquisa, julho 2021"]
[null,"Paranaíba",8,2,0]
[null,"Ponta Porã",0,0,0]
[null,"Total ",{"$f":"SUM(C19:C33)","v":31},{"$f":"SUM(D19:D33)","v":6},{"$f":"SUM(E19:E33)","v":14}]
[null,"*Dados referentes ao 1º semestre de 2022"]

{"sheet":"Historico_IC","index":11,"n_rows":53,"n_cols":9,"rows_kept":53,"cut":false,"hidden":false,"merged":[[12,1,13,6]]}
[]
[]
[]
[]
[]
[]
[]
[]
[]
[]
[null,"Objetivo: Apresentar a série histórica envolvendo a Iniciação Científica"]
[]
[null,"Quadro - Histórico de bolsas de IC disponibilizadas aos alunos de graduação - por área de conhecimento"]
[]
[null,"Áreas de Conhecimento","2017/18","2018/19","2019/20","2020/21","2021/22"]
[null,"Ciências Exatas e da Terra",43,48,43,43,31]
[null,"Ciências Biológicas ",15,18,19,22,10]
[null,"Engenharias",26,20,18,15,18]
[null,"Ciências da Saúde",44,41,44,36,60]
[null,"Ciências Agrárias",105,101,108,101,122]
[null,"Ciências Sociais Aplicadas",37,31,40,42,59]
[null,"Ciências Humanas",24,27,25,52,39]
[null,"Linguística, Letras e Artes",13,27,35,24,24]
[null,"Total",307,335,335,335,363]
[null,"OBS: Período compreendido da bolsa: 1 de agosto a 31 julho do ano posterior"]
[]
[]
[null,"Quadro - Histórico de bolsas de Iniciação Científica  - por modalidade "]
[null,"Modalidade/Fonte","2017/2018","2018/2019","2019/2020","2020/2021","2021/2022"]
[null,"PIBIC CNPq",60,60,60,60,60]
[null,"PIBIC UEMS",220,250,251,251,276]
[null,"PIBITI CNPq",11,9,9,9,9]
[null,"PIBIC AAF",16,16,16,15,18]
[null,"Total",307,335,336,335,363]
[null,"OBS: Período compreendido da bolsa: 1 de agosto de 2021 a 1 janeiro de 2022"]
[null,"PIBIC UEMS: Empréstimo entre editais UEMS: 2017/2018 3 bolsas; 2019/2020 1 bolsa; 2021/2022 28 bolsas"]
[]
[]
[null,"Quadro - Histórico do quantitativo de alunos na Modalidade IC sem bolsa* - por área de conhecimento"]
[null,"Áreas de conhecimento",2016,2017,2018,2019,2020,2021,"2022*"]
[null,"Ciências Exatas e da Terra",11,11,17,8,6,9,4]
[null,"Ciências Biológicas ",6,3,7,6,11,4,3]
[null,"Engenharias",14,1,2,3,7,1,1]
[null,"Ciências da Saúde",4,2,3,5,1,4,0]
[null,"Ciências Agrárias",11,3,11,22,19,6,2]
[null,"Ciências Sociais Aplicadas",14,4,8,17,15,10,12]
[null,"Ciências Humanas",11,8,18,15,14,11,4]
[null,"Linguística, Letras e Artes",21,15,16,19,10,6,5]
[null,"Total",92,47,82,95,83,51,{"$f":"SUM(I41:I48)","v":31}]
[null,"OBS: IC modalidade sem bolsa em execução"]
[null,"*Dados referem-se ao 1º semestre de 2022"]
[]
[null,"Fonte: Divisão de Pesquisa, julho 2022"]

{"sheet":"Grafico_historico","index":12,"n_rows":27,"n_cols":11,"rows_kept":27,"cut":false,"hidden":false,"merged":[[10,1,11,8],[26,1,27,7]]}
[]
[]
[]
[]
[]
[]
[]
[]
[]
[]
[null,"Evolução da quantidade de bolsas de IC disponibilizadas aos discentes - por área do conhecimento",null,null,null,null,null,null,null,null,"Evolução da quantidade de bolsas de IC por modalidade PIBIC"]
[]
[]
[]
[]
[]
[]
[]
[]
[]
[]
[]
[]
[]
[]
[]
[null,"Evolução da quantidade de alunos na modalidade sem bolsa - por área do conhecimento"]

{"sheet":"Menu_Pesquisa","index":13,"n_rows":0,"n_cols":0,"rows_kept":0,"cut":false,"hidden":false,"merged":[]}

{"sheet":"Projetos_2022","index":14,"n_rows":94,"n_cols":16,"rows_kept":94,"cut":false,"hidden":false,"merged":[[68,11,69,11],[82,11,83,11],[82,15,83,15],[82,8,86,8],[66,8,67,8],[68,8,69,8],[70,8,71,8],[72,8,73,8],[74,8,75,8],[76,8,79,8],[80,8,81,8],[81,9,81,10],[82,9,82,10],[83,9,83,10],[84,9,84,10],[73,9,73,10],[91,8,91,10],[14,9,14,10],[15,8,17,8],[18,8,23,8],[24,8,34,8],[35,8,38,8],[39,8,40,8],[41,8,65,8],[85,9,85,10],[86,9,86,10],[87,9,87,10],[88,9,88,10],[89,9,89,10],[90,9,90,10],[79,9,79,10],[80,9,80,10],[74,9,74,10],[75,9,75,10],[76,9,76,10],[77,9,77,10],[78,9,78,10],[72,9,72,10],[60,9,60,10],[61,9,61,10],[62,9,62,10],[63,9,63,10],[66,9,66,10],[67,9,67,10],[68,9,68,10],[69,9,69,10],[70,9,70,10],[71,9,71,10],[64,9,64,10],[65,9,65,10],[44,9,44,10],[45,9,45,10],[46,9,46,10],[59,9,59,10],[48,9,48,10],[49,9,49,10],[50,9,50,10],[51,9,51,10],[52,9,52,10],[53,9,53,10],[54,9,54,10],[55,9,55,10],[56,9,56,10],[57,9,57,10],[58,9,58,10],[39,9,39,10],[40,9,40,10],[41,9,41,10],[42,9,42,10],[43,9,43,10],[20,9,20,10],[24,9,24,10],[25,9,25,10],[26,9,26,10],[27,9,27,10],[87,8,90,8],[21,9,21,10],[22,9,22,10],[23,9,23,10],[34,9,34,10],[35,9,35,10],[28,9,28,10],[29,9,29,10],[30,9,30,10],[31,9,31,10],[32,9,32,10],[33,9,33,10],[47,9,47,10],[36,9,36,10],[37,9,37,10],[38,9,38,10],[15,9,15,10],[16,9,16,10],[17,9,17,10],[18,9,18,10],[19,9,19,10]]}
[]
[]
[]
[]
[]
[]
[]
[]
[]
[]
[null,"Objetivo: Informar a quantidade de Projetos de Pesquisa em execução e finalizados durante o ano de 2022 "]
[]
[]
[null,"Quadro – Projetos de pesquisa em execução e finalizados - por Unidade Universitária ",null,null,null,null,null,null,"Quadro – Projetos de pesquisa em execução e finalizados - por Curso/CEPEXs"]
[null,"Unidades Universitárias","Execução 1º semestre","Finalizados 1º semestre","Execução 2º semestre","Finalizados 2º semestre","Inadimplente RF**",null,"Unidade Universitária ","Curso/Centro*",null,"Execução 1º semestre","Finalizados 1º semestre","Execução 2º semestre ","Finalizados 2º sem ","Inadimplente RF**"]
[null,"Amambai",14,2,null,null,2,null,"Amambai","Ciências Sociais",null,7,1,null,null,0]
[null,"Aquidauana",40,5,null,null,1,null,null,"História",null,7,1,null,null,2]
[null,"Campo Grande",60,15,null,null,2,null,null,"PROFHISTORIA",null,0,null,null,null,0]
[null,"Cassilândia",25,2,null,null,3,null,"Aquidauana","Agronomia",null,10,null,null,null,1]
[null,"Coxim",1,0,null,null,1,null,null,"Engenharia Florestal",null,8,null,null,null,0]
[null,"Dourados",91,16,null,null,6,null,null,"Zootecnia",null,19,5,null,null,0]
[null,"Glória de Dourados",0,1,null,null,1,null,null,"CECA - Centro de Excelência em Ciência Animal do Cerrado e Pantanal",null,1,null,null,null,0]
[null,"Ivinhema",3,0,null,null,0,null,null,"CEMAP - Centro de Estudos em Meio Ambiente, Áreas Protegidas e Desenvolvimento Sustentável ",null,2,null,null,null,0]
[null,"Jardim ",8,2,null,null,0,null,null,"CEPROV - Centro de Estudos em Produção Vegetal",null,0,null,null,null,0]
[null,"Maracaju",4,0,null,null,0,null,"Campo Grande\n","Artes Cênicas",null,4,2]
[null,"Mundo Novo",7,1,null,null,0,null,null,"Geografia Bacharel",null,17]
[null,"Naviraí",23,3,null,null,0,null,null,"Geografia Licenciatura"]
[null,"Nova Andradina",6,2,null,null,1,null,null,"Letras Bacharel",null,2,1,null,null,1]
[null,"Paranaíba",30,4,null,null,3,null,null,"Letras Port./Inglês",null,8,4]
[null,"Ponta Porã",9,0,null,null,0,null,null,"Letras Port./Esp.",null,3,1]
[null,"Total",{"$f":"SUM(C16:C30)","v":321},{"$f":"SUM(D16:D30)","v":53},null,null,{"$f":"SUM(G16:G30)","v":20},null,null,"Medicina",null,12,5]
[null,"* Considera-se a data de aprovação do relatório final para a finalização do projeto",null,null,null,null,null,null,null,"Pedagogia",null,6,2,null,null,1]
[null,"**Refere-se a projetos que não são computados nem como em execução e nem como finalizados. ",null,null,null,null,null,null,null,"Turismo",null,3]
[null,null,null,null,null,null,null,null,null,"Mestrado Letras",null,5]
[null,"Quadro – Projetos de pesquisa em execução e finalizados* - por Área de conhecimento ",null,null,null,null,null,null,null,"CELMI - Centro de Pesquisa, Ensino e Extensão em Educação, Linguagem, Memória e Identidade",null,0]
[null,"Áreas de Conhecimento","1º semestre em execução","Finalizados 1º semestre","2º semestre em execução","Finalizados 2º semestre","Inadimplente RF**",null,"Cassilândia","Agronomia",null,17,2,null,null,1]
[null,"Ciências Exatas e da Terra",50,10,null,null,5,null,null,"Letras ",null,3,null,null,null,1]
[null,"Ciências Biológicas ",18,4,null,null,null,null,null,"Matemática",null,2]
[null,"Engenharias",12,0,null,null,null,null,null,"CEDESU-Centro de Desenvolvimento Sustentável do Bolsão sulmatogrossense",null,3,null,null,null,1]
[null,"Ciências da Saúde",20,4,null,null,null,null,"Coxim","Ciências Biológicas",null,1]
[null,"Ciências Agrárias",58,8,null,null,2,null,null,"Gestão Ambiental",null,null,null,null,null,1]
[null,"Ciências Sociais Aplicadas",53,7,null,null,3,null,"Dourados","Ciências da Computação",null,7,1]
[null,"Ciências Humanas",73,9,null,null,7,null,null,"Ciências Biológicas Bacharel",null,2,1]
[null,"Linguística, Letras e Artes",34,11,null,null,3,null,null,"Ciências Biológicas Licenc."]
[null,"Outras",3,0,null,null,null,null,null,"Direito",null,6,2,null,null,1]
[null,"Total",{"$f":"SUM(C37:C45)","v":321},{"$f":"SUM(D37:D45)","v":53},null,null,{"$f":"SUM(G37:G45)","v":20},null,null,"Enfermagem",null,11]
[null,"* Considera-se a data de aprovação do relatório final para a finalização do projeto",null,null,null,null,null,null,null,"Engenharia Ambiental",null,10,null,null,null,1]
[null,"** Refere-se a projetos que não são computados nem como em execução e nem como finalizados. ",null,null,null,null,null,null,null,"Engenharia Ambiental e sanitária"]
[null,null,null,null,null,null,null,null,null,"Engenharia Física",null,6,2,null,null,1]
[null,"Fonte: Divisão de Pesquisa, julho 2022",null,null,null,null,null,null,null,"Física",null,1]
[null,null,null,null,null,null,null,null,null,"Letras Port./Inglês",null,4,1,null,null,1]
[null,null,null,null,null,null,null,null,null,"Letras  Port./ Espanhol",null,5,1]
[null,null,null,null,null,null,null,null,null,"Matemática",null,6,1]
[null,null,null,null,null,null,null,null,null,"Pedagogia",null,3,1]
[null,null,null,null,null,null,null,null,null,"Química",null,4,null,null,null,2]
[null,null,null,null,null,null,null,null,null,"Química Industrial",null,1]
[null,null,null,null,null,null,null,null,null,"Sistema de Informação",null,3]
[null,null,null,null,null,null,null,null,null,"Turismo",null,5,1]
[null,null,null,null,null,null,null,null,null,"CEPEMAT – Centro de Pesquisas em Materias",null,2]
[null,null,null,null,null,null,null,null,null,"CEPES - Centro de Ensino, Pesquisa e Extensão em Educação em Saúde ",null,1]
[null,null,null,null,null,null,null,null,null,"CEPEGRE - Centro de Estudos, Pesquisa e Extensão em Educação, Gênero, Raça e Etnia",null,2,1]
[null,null,null,null,null,null,null,null,null,"CERNA - Centro de Estudos em Recursos Naturais",null,8,3]
[null,null,null,null,null,null,null,null,null,"PROFLETRAS-DOURADOS - Programa de Mestrado Profissional em Letras",null,1]
[null,null,null,null,null,null,null,null,null,"PGRN - Programa de Pós Graduação em Recursos Naturais",null,1,1]
[null,null,null,null,null,null,null,null,null,"PROFMAT-Programa de Mestrado profissional em Matemática em Rede Nacional",null,1]
[null,null,null,null,null,null,null,null,null,"PRODHS",null,1]
[null,null,null,null,null,null,null,null,"Glória de Dourados","Tecnologia em Agroecologia",null,null,null,null,null,1]
[null,null,null,null,null,null,null,null,null,"Tecnologia em Produção Sucroalcooleira",null,null,1]
[null,null,null,null,null,null,null,null,"Ivinhema","Ciências Biológicas Bacharel",null,3]
[null,null,null,null,null,null,null,null,null,"Ciências Biológicas Licenc."]
[null,null,null,null,null,null,null,null,"Jardim","Geografia Licenciatura",null,5,1]
[null,null,null,null,null,null,null,null,null,"Letras ",null,3,1]
[null,null,null,null,null,null,null,null,"Maracaju","Administração",null,2]
[null,null,null,null,null,null,null,null,null,"Pedagogia",null,2]
[null,null,null,null,null,null,null,null,"Mundo Novo","Ciências Biológicas Licenc.",null,3,1]
[null,null,null,null,null,null,null,null,null,"Tecnologia Gestão Ambiental",null,4]
[null,null,null,null,null,null,null,null,"Naviraí","Química",null,9,1]
[null,null,null,null,null,null,null,null,null,"Engenharia de Alimentos",null,3]
[null,null,null,null,null,null,null,null,null,"Direito",null,10,2]
[null,null,null,null,null,null,null,null,null,"CDTEQ - Centro de Desenvolvimento em Tecnologias Químicas",null,1]
[null,null,null,null,null,null,null,null,"Nova Andradina","Matemática",null,5,null,null,null,1]
[null,null,null,null,null,null,null,null,null,"Computação",null,1,2]
[null,null,null,null,null,null,null,null,"Paranaíba","Ciências Sociais Bacharel",null,5,null,null,null,1]
[null,null,null,null,null,null,null,null,null,"Ciências Sociais Licenciatura"]
[null,null,null,null,null,null,null,null,null,"Direito",null,18,2,null,null,1]
[null,null,null,null,null,null,null,null,null,"Pedagogia",null,7,2,null,null,1]
[null,null,null,null,null,null,null,null,null,"CEPEED - Centro de Pesquisa, Ensino e Extensão em Educação",null,0]
[null,null,null,null,null,null,null,null,"Ponta Porã","Administração de Empresas",null,2]
[null,null,null,null,null,null,null,null,null,"Ciências Contábeis",null,2]
[null,null,null,null,null,null,null,null,null,"Ciências Econômicas",null,3]
[null,null,null,null,null,null,null,null,null,"Mestrado em Desenvolvimento Regional e de Sistemas Produtivos",null,2]
[null,null,null,null,null,null,null,null,"Total",null,null,{"$f":"SUM(L16:L91)","v":321},{"$f":"SUM(M16:M91)","v":53},null,null,{"$f":"SUM(P16:P91)","v":20}]
[null,null,null,null,null,null,null,null,"*Os docentes tem a opção de cadastrar seus projetos em cursos de graduação, pós-graduação, Centros de Pesquisa ou setores administrativos."]
[null,null,null,null,null,null,null,null,"**Refere-se a projetos que não são computados nem como em execução e nem como finalizados. "]

{"sheet":"Projetos por tipo","index":15,"n_rows":53,"n_cols":8,"rows_kept":53,"cut":false,"hidden":false,"merged":[[48,2,48,4],[48,5,48,7],[14,2,14,4],[14,5,14,7],[14,1,15,1],[36,1,37,1],[36,2,36,4],[36,5,36,7],[32,2,32,4],[32,5,32,7]]}
[]
[]
[]
[]
[]
[]
[]
[]
[]
[]
[null,"Objetivo: Informar a quantidade de Projetos de Pesquisa por tipo, cadastrados em 2022* na Divisão de Pesquisa/PROPPI"]
[]
[]
[null,"Quadro – Projetos de pesquisa - por Unidade Universitária"]
[null,"Unidades Universitárias","Projetos com financiamento",null,null,"Projetos sem financiamento"]
[null,null,"Interinstitucional","Institucional","Cooperação internacional","Interinstitucional","Institucional","Cooperação internacional"]
[null,"Amambai",null,null,null,null,1]
[null,"Aquidauana",2,2,null,null,3]
[null,"Campo Grande",1,2,null,1,8]
[null,"Cassilândia",null,1,null,null,4]
[null,"Coxim"]
[null,"Dourados",4,null,null,3,6]
[null,"Glória de Dourados"]
[null,"Ivinhema",null,null,null,1,1]
[null,"Jardim ",1,null,null,null,2]
[null,"Maracaju"]
[null,"Mundo Novo",1,null,null,1]
[null,"Naviraí",1,null,null,null,6]
[null,"Nova Andradina"]
[null,"Paranaíba",null,null,null,null,4]
[null,"Ponta Porã"]
[null,"Total",{"$f":"SUM(C17:C31)","v":10},{"$f":"SUM(D17:D31)","v":5},null,{"$f":"SUM(F17:F31)","v":6},{"$f":"SUM(G17:G31)","v":35}]
[null,"Total Geral ",{"$f":"SUM(C32:E32)","v":15},null,null,{"$f":"SUM(F32:H32)","v":41}]
[]
[]
[null,"Quadro – Projetos de pesquisa - por área de conhecimento "]
[null,"Áreas de Conhecimento","Projetos com financiamento",null,null,"Projetos sem financiamento"]
[null,null,"Interinstitucional","Institucional ","Cooperação internacional","Interinstitucional","Institucional ","Cooperação internacional"]
[null,"Ciências Exatas e da Terra",2,null,null,2,7]
[null,"Ciências Biológicas ",null,null,null,3]
[null,"Engenharias",1]
[null,"Ciências da Saúde",1,null,null,null,2]
[null,"Ciências Agrárias",2,3,null,null,5]
[null,"Ciências Sociais Aplicadas",1,null,null,null,4]
[null,"Ciências Humanas",2,1,null,null,9]
[null,"Linguística, Letras e Artes",null,1,null,1,7]
[null,"Outras ",1,null,null,null,1]
[null,"Total",{"$f":"SUM(C39:C47)","v":10},{"$f":"SUM(D39:D47)","v":5},null,{"$f":"SUM(F39:F47)","v":6},{"$f":"SUM(G39:G47)","v":35}]
[null,"Total Geral ",{"$f":"SUM(C48:E48)","v":15},null,null,{"$f":"SUM(F48:H48)","v":41}]
[]
[null,"*Dados refere-se ao 1º semestre "]
[]
[null,"Fonte: Divisão de Pesquisa, julho 2022"]

{"sheet":"Recurso_proj_indiv","index":16,"n_rows":55,"n_cols":9,"rows_kept":55,"cut":false,"hidden":false,"merged":[[52,1,52,6],[49,1,50,7],[14,1,15,1],[12,1,13,7],[35,1,36,1],[14,2,14,8],[35,2,35,8]]}
[]
[]
[]
[]
[]
[]
[]
[]
[]
[]
[null,"Objetivo: Informar o volume de recursos financeiros captados por projetos de pesquisa individuais destinados a UEMS"]
[]
[null,"Quadro - Recursos financeiros captados por projetos individuais - por Unidade Universitária"]
[]
[null,"Unidades Universitárias","Ano*"]
[null,null,2016,2017,2018,2019,2020,2021,"2022**"]
[null,"Amambai","-","-","-","-","-"]
[null,"Aquidauana",284852,33400,1620068.22,"-",1829324.9,289245,1349527.15]
[null,"Campo Grande",58118,67927.100000000006,9809.1,"-",549328.80000000005,null,158100]
[null,"Cassilândia",39600,"-",282250,"-",259312,null,39600]
[null,"Coxim","-","-","-","-","-"]
[null,"Dourados",342500,472500.4,863160.4,39600,4360458.0599999996,61495,852825.85]
[null,"Glória de Dourados","-","-","-","-","-"]
[null,"Ivinhema","-","-","-","-","-"]
[null,"Jardim ","-","-",90000,43808.1,133808.1,null,60000]
[null,"Maracaju","-","-","-","-","-"]
[null,"Mundo Novo","-","-","-","-",7872714.3399999999,null,674041.51]
[null,"Naviraí",21000,"-",66300,"-",116300,null,168200]
[null,"Nova Andradina","-","-","-","-","-"]
[null,"Paranaíba","-","-",22900,"-",22900]
[null,"Ponta Porã","-","-",35000,"-",35000]
[null,"Total",746070,573827.5,2989487.72,83408.100000000006,15179146.199999999,350740,{"$f":"SUM(I17:I31)","v":3302294.51}]
[]
[]
[null,"Quadro - Recursos financeiros captados por projetos individuais - por área de conhecimento"]
[null,"Áreas de Conhecimento","Ano*"]
[null,null,2016,2017,2018,2019,2020,2021,"2022**"]
[null,"Ciências Exatas e da Terra",21000,130000,324900,83408.100000000006,1365563.1,61495,99600]
[null,"Ciências Biológicas ",24000,24000,256060,"-",118060,null,39600]
[null,"Engenharias","-","-","-","-",3001702.66,null,750000]
[null,"Ciências da Saúde","-",9809.1,39809.1,"-",778331.4,null,23625.85]
[null,"Ciências Agrárias",324452,33400,1902318.22,"-",9361351.2400000002,289245,1389127.15]
[null,"Ciências Sociais Aplicadas","-","-",35000,"-","-",null,168200]
[null,"Ciências Humanas",348118,348118.4,431400,"-",528310.4,null,118500]
[null,"Linguística, Letras e Artes",28500,28500,"-","-",25827.4,null,39600]
[null,"Outras",null,null,null,null,null,null,674041.51]
[null,"Total",746070,573827.5,2989487.32,83408.100000000006,15179146.199999999,350740,{"$f":"SUM(I38:I46)","v":3302294.51}]
[]
[]
[null,"* Nos período de 2016 a 2020, foram considerados os projetos em execução durante o ano, a partir de 2021, foram considerados os projetos cadastrados naquele ano, sendo por ano de cadastro."]
[]
[]
[null,"**Dados referem-se ao 1º semestre de 2022"]
[]
[null,"Fonte: Divisão de Pesquisa, julho 2022"]

{"sheet":"Historico_projeto","index":17,"n_rows":38,"n_cols":9,"rows_kept":38,"cut":false,"hidden":false,"merged":[[18,1,19,7],[32,1,33,7]]}
[]
[]
[]
[]
[]
[]
[]
[]
[]
[]
[null,"Objetivo: Apresentar a série histórica envolvendo dados dos projetos de pesquisa"]
[]
[]
[null,"Quadro - Histórico de projetos de pesquisa - por categoria e ano*"]
[null,"Categoria ",2016,2017,2018,2019,2020,2021,"2022**"]
[null,"Projetos sem financiamento",380,286,272,295,255,91,41]
[null,"Projetos com cooperação internacional ",1,"-",2,"-","-","- "]
[null,"Projetos com financiamento",14,9,39,9,44,3,15]
[null,"* Nos períodos de 2016 a 2020, foram considerados os projetos em execução durante o ano, a partir de 2021, foram considerados os projetos cadastrados naquele ano, sendo por ano de cadastro."]
[]
[]
[null,"Quadro – Projetos de pesquisa em execução e finalizados*"]
[null,"Categoria ",2016,2017,2018,2019,2020,2021,"2022**"]
[null,"Projetos em execução",380,286,272,295,300,311,321]
[null,"Projetos finalizados",69,98,83,47,71,86,53]
[null,"Inadimplentes***","-","-","-","-","-",32,20]
[null,"*Quantidade referente aos projetos cadastrados até 12/2021"]
[null,"** Refere-se a projetos que não são computados nem como em execução e nem como finalizados. "]
[]
[null,"Quadro - Volume de recursos capactados por projetos individuais*"]
[null,"Categoria ",2016,2017,2018,2019,2020,2021,"2022**"]
[null,"Projetos individuais",746070,573827.5,2989487.32,83408.100000000006,15179146.199999999,350740,3302294.51]
[null,"* Nos período de 2016 a 2020, foram considerados os projetos em execução durante o ano, a partir de 2021, foram considerados os projetos cadastrados naquele ano, sendo por ano de cadastro."]
[]
[]
[null,"**Dados referem-se ao 1º semestre de 2022"]
[]
[null,"Fonte: Divisão de Pesquisa, julho 2022 "]

{"sheet":"Grafico_projeto","index":18,"n_rows":32,"n_cols":10,"rows_kept":32,"cut":false,"hidden":false,"merged":[[25,1,28,8]]}
[]
[]
[]
[]
[]
[]
[]
[]
[]
[]
[null,"Evolução da quantidade de projetos de pesquisa - por categoria e ano",null,null,null,null,null,null,null,"Evolução da quantidade de projetos de pesquisa em execução e finalizados"]
[]
[]
[]
[]
[]
[]
[]
[]
[]
[]
[]
[]
[]
[]
[null,"* Nos períodos de 2016 a 2020, foram considerados os projetos em execução durante o ano, a partir de 2021, foram considerados os projetos cadastrados naquele ano, sendo por ano de cadastro."]
[]
[]
[]
[]
[]
[null,"Evolução do volume de recursos captados por projetos individuais"]

{"sheet":"GP","index":19,"n_rows":29,"n_cols":12,"rows_kept":29,"cut":false,"hidden":false,"merged":[[14,10,14,11],[14,1,15,1],[14,2,14,3],[14,4,14,5],[14,6,14,7],[14,8,14,9]]}
[]
[]
[]
[]
[]
[]
[]
[]
[]
[]
[null,"Objetivo: Indicar a quantidade de grupos de pesquisa cadastrados no diretório do CNPq, por grande área de conhecimento"]
[]
[]
[null,"Quadro - Quantidade de grupos de pesquisa - por área de conhecimento "]
[null,"Áreas de Conhecimento",2018,null,2019,null,2020,null,2021,null,"2022**"]
[null,null,"Certificados*","Em preenchimento ","Certificados*","Em preenchimento ","Certificados*","Em preenchimento ","Certificados*","Em preenchimento ","Certificados*","Em preenchimento "]
[null,"Ciências Exatas e da Terra",14,"-",14,1,9,1,7,2,11,0]
[null,"Ciências Biológicas ",7,"-",5,1,3,1,7,0,7,0]
[null,"Engenharias",1,"-",1,"-",2,"-",2,1,3,0]
[null,"Ciências da Saúde",7,"-",5,3,6,1,6,1,5,2]
[null,"Ciências Agrárias",16,1,18,1,22,5,20,6,22,4]
[null,"Ciências Sociais Aplicadas",9,2,7,"-",13,1,13,2,14,4]
[null,"Ciências Humanas",25,"-",23,"-",22,5,24,4,27,3]
[null,"Linguística, Letras e Artes",15,4,18,4,17,5,16,7,20,4]
[null,"Total",94,7,91,10,94,19,95,23,{"$f":"SUM(K17:K24)","v":109},{"$f":"SUM(L17:L24)","v":17}]
[null,"* certificados com ou sem atualização há mais de 12 meses "]
[null,"**Dados referem-se ao 1º semestre de 2022"]
[]
[null,"Fonte: Diretório de grupos de pesquisa/CNPq, julho 2022"]

{"sheet":"Bolsista_Prod","index":20,"n_rows":29,"n_cols":8,"rows_kept":29,"cut":false,"hidden":false,"merged":[[15,1,16,1],[10,1,11,7],[15,2,15,7]]}
[]
[]
[]
[]
[]
[]
[]
[]
[]
[]
[null,"Objetivo: Indicar o número de docentes contemplados com bolsa Produtividade em Pesquisa (PQ) do CNPq"]
[]
[]
[]
[null,"Quadro - Quantidade de bolsistas Produtividade em Pesquisa "]
[null,"Áreas de Conhecimento","Ano de concessão"]
[null,null,2017,2018,2019,2020,2021,"2022*"]
[null,"Ciências Exatas e da Terra",3,3,3,4,4,5]
[null,"Ciências Biológicas ",2,2,1,2,2,2]
[null,"Engenharias","-","-","-","-","-"]
[null,"Ciências da Saúde","-","-","-",1,1,1]
[null,"Ciências Agrárias",2,2,2,2,1,2]
[null,"Ciências Sociais Aplicadas","-","-","-","-","-"]
[null,"Ciências Humanas","-","-","-","-","-"]
[null,"Linguística, Letras e Artes","-","-","-","-","-",1]
[null,"Total",7,7,6,9,8,{"$f":"SUM(H18:H25)","v":11}]
[null,"*Dados referem-se ao primeiro semestre de 2022"]
[]
[null,"Fonte: Divisão de Pesquisa/CNPq, julho 2022"]

{"sheet":"Producao_docente","index":21,"n_rows":26,"n_cols":6,"rows_kept":26,"cut":false,"hidden":false,"merged":[[11,1,12,6]]}
[]
[]
[]
[]
[]
[]
[]
[]
[]
[]
[]
[null,"Objetivo: Indicar o quantitativo de produção de docentes da UEMS (exceto: vacância, falecido, exonerado e externo)"]
[]
[]
[null,"Quadro - Quantidade de artigos publicados em periódicos "]
[null,"Ano da produção","Artigos publicados em periódicos ","Trabalho publicado em anais de evento","Capítulo de livro","Livro"]
[null,2016,578,1023,235,67]
[null,2017,556,1049,204,37]
[null,2018,601,904,356,24]
[null,2019,595,859,248,27]
[null,2020,702,329,279,39]
[null,2021,521,327,274,50]
[null,"2022*",159,43,47,11]
[null,"*Dados referem-se ao 1º semestre de 2022."]
[]
[null,"Fonte: Dados Stela Experta, 01/07/2022."]

{"sheet":"Producao_Cepex","index":22,"n_rows":37,"n_cols":10,"rows_kept":37,"cut":false,"hidden":false,"merged":[[22,1,23,1],[11,1,12,9],[16,1,16,4],[17,1,17,6],[18,1,18,6],[22,2,22,7],[22,9,25,12]]}
[]
[]
[]
[]
[]
[]
[]
[]
[]
[]
[]
[null,"Objetivo: Indicar o quantitativo de artigos científicos publicados em periódicos, de docentes vinculados a CEPEX (exceto: vacância, falecido, exonerado e externo)"]
[]
[]
[]
[null,"Taxa produção de artigos científicos de docentes vinculados ao CEPEX"]
[null,"TProd=ProdDocCEPEX/TProdDoc x 100"]
[null,"ProdDocCEPEX= nº de produções docentes vinculados ao CEPEX",null,null,null,null,null,null,"TProd 2020= 425/690x100= 61,6% "]
[null,"TProdDoc= nº total de produções dos docentes da UEMS",null,null,null,null,null,null,"TProd 2021= 228/437x100=52,17%"]
[]
[]
[null,"Quadro - Quantidade de artigos publicados em periódicos "]
[null,"CEPEX","Ano de Produção",null,null,null,null,null,null,"Indicador atualizado anualmente com os dados referentes ao ano anterior."]
[null,null,2016,2017,2018,2019,2020,2021]
[null,"CERNA",87,79,116,140,103,77]
[null,"CDTEQ",22,10,21,17,18,12]
[null,"CECA",34,23,26,29,41,21]
[null,"CEDESU",64,60,67,75,100,44]
[null,"CELMI",19,30,17,32,32,13]
[null,"CEMAP",3,1,3,4,2,0]
[null,"CEPEED",19,13,21,15,19,9]
[null,"CEPEGRE",17,5,7,14,18,9]
[null,"CEPEMAT",14,5,13,7,4,6]
[null,"CEPES",19,19,23,21,39,15]
[null,"CEPROV",54,35,28,26,49,22]
[null,"Total Geral ",352,280,342,380,425,228]
[null,"Fonte: Stela Experta 28/01/2022, dados gerados a partir da Plataforma Lattes do CNPq."]

{"sheet":"Menu_pos","index":23,"n_rows":0,"n_cols":0,"rows_kept":0,"cut":false,"hidden":false,"merged":[]}

{"sheet":"Ofertados","index":24,"n_rows":64,"n_cols":6,"rows_kept":64,"cut":false,"hidden":false,"merged":[]}
[]
[]
[]
[]
[]
[]
[]
[]
[]
[]
[null,"Objetivo: Apresentar a oferta de cursos e programas de pós-graduação"]
[]
[null,"Percentual de cursos de especialização nas Unidades Universitárias fora da sede"]
[null,"Fórmula de cálculo: IPlsUE = PlsUE/TPls x 100"]
[null,"PlsUE = nº de Cursos de Pós-Graduação Lato Sensu em Unidades Universitárias fora de Dourados"]
[null,"TPls = nº total de Cursos de Pós-Graduação lato sensu da UEMS"]
[]
[null,{"$f":"7/8","v":0.875}," lato sensu fora da sede (Dourados)"]
[]
[null,"Taxa de novos cursos Lato Sensu (especialização)"]
[null,"TNCurEsp=NCurEsp/TCurEsp x 100"]
[null,"NCurEsp= nº de novos cursos de especialização implantados: 3"]
[null,"TCurEsp= nº total de cursos de especialização na UEMS: 8"]
[null,{"$f":"3/8","v":0.375}," novos cursos lato sensu"]
[]
[null,"Percentual de programas stricto sensu nas Unidades Universitárias fora da sede"]
[null,"Fórmula de cálculo: IPlsUE = PlsUE/TPls x 100"]
[null,"PlsUE = nº de Programas de Pós-Graduação Stricto Sensu em Unidades Universitárias fora de Dourados: 9"]
[null,"TPls = nº total de Programas de Pós-Graduação Stricto Sensu da UEMS:14"]
[null,{"$f":"9/14","v":0.6428571428571429}," stricto sensu fora da sede (Dourados)"]
[]
[]
[null,"Quadro - Cursos de Pós-Graduação Lato Sensu - Especialização ofertados"]
[null,"Curso","Unidade Universitária/Polo"]
[null,"Direitos Difusos e Coletivos","Dourados "]
[null,"Gestão do Turismo","Campo Grande "]
[null,"Residência Multiprofissional em Saúde da Família ","Campo Grande"]
[null,"Residência Multiprofissional em Saúde da Família (turma 2)","Campo Grande"]
[null,"Gestão Pública","Maracaju"]
[null,"Direito e Vulnerabilidade","Naviraí"]
[null,"Direitos Humanos","Paranaíba "]
[null,"Políticas Públicas, Cultura e Sociedade","Paranaíba"]
[]
[]
[null,"Quadro - Programas de Pós-graduação stricto sensu ofertados, com data de implantação e conceito Capes"]
[null,"Curso","Nível","Unidade Universitária ","Implantação","Conceito Capes"]
[null,"Agronomia: Produção Vegetal  ","Doutorado Acadêmico","Aquidauana",2015,4]
[null,"Agronomia: Produção Vegetal  ","Mestrado Acadêmico","Aquidauana",2009,4]
[null,"Agronomia: Sustentabilidade na Agricultura","Mestrado Acadêmico","Cassilândia",2012,3]
[null,"Desenvolvimento Regional e de Sistemas Produtivos","Mestrado Acadêmico","Ponta Porã",2014,3]
[null,"Educação: Educação, Linguagem e Sociedade","Mestrado Acadêmico","Paranaíba",2011,3]
[null,"Zootecnia: Produção Animal no Cerrado Pantanal ","Mestrado Acadêmico","Aquidauana",2010,3]
[null,"Letras: Língua e Literatura ","Mestrado Acadêmico","Campo Grande",2011,3]
[null,"Recursos Naturais ","Doutorado Acadêmico","Dourados",2013,4]
[null,"Recursos Naturais ","Mestrado Acadêmico","Dourados",2010,4]
[null,"Educação ","Mestrado Profissional","Campo Grande",2012,4]
[null,"Educação Científica e Matemática ","Mestrado Profissional","Dourados",2015,3]
[null,"Ensino em Saúde ","Mestrado Profissional","Dourados",2013,3]
[null,"História","Mestrado Profissional em Rede","Amambai",2016,4]
[null,"Letras ","Mestrado Profissional em Rede","Dourados",2014,4]
[null,"Letras ","Mestrado Profissional em Rede","Campo Grande",2013,4]
[null,"Matemática ","Mestrado Profissional em Rede","Dourados",2011,5]
[]
[null,"Fonte: SIGPÓS, julho 2022"]

{"sheet":"Historico","index":25,"n_rows":68,"n_cols":9,"rows_kept":68,"cut":false,"hidden":false,"merged":[[53,1,54,7],[12,1,13,7],[20,1,21,7],[28,1,29,7],[36,1,37,7],[45,1,46,7]]}
[]
[]
[]
[]
[]
[]
[]
[]
[]
[]
[null,"Objetivo: Apresentar a série histórica envolvendo dados do corpo discente na Pós-Graduação Lato e Stricto Sensu. "]
[]
[null,"Quadro - Histórico do número de cursos e programas de pós-graduação da UEMS "]
[]
[null,"Pós-Graduação",2016,2017,2018,2019,2020,2021,"2022*"]
[null,"Doutorado",2,2,2,2,2,2,2]
[null,"Mestrado",14,14,14,14,14,14,14]
[null,"Especialização",11,17,20,5,11,10,8]
[null,"Total",27,33,36,21,27,26,{"$f":"SUM(I16:I18)","v":24}]
[]
[null,"Quadro - Histórico do número de vagas em cursos e programas de pós-graduação da UEMS"]
[]
[null,"Pós-Graduação",2016,2017,2018,2019,2020,2021,"2022*"]
[null,"Doutorado",18,27,39,28,16,19,25]
[null,"Mestrado",142,289,333,312,311,426,276]
[null,"Especialização",80,1083,250,75,286,79,62]
[null,"Total",240,1399,622,415,613,524,{"$f":"SUM(I24:I26)","v":363}]
[]
[null,"Quadro - Histórico do número de ingressantes em cursos e programas de pós-graduação da UEMS"]
[]
[null,"Pós-Graduação",2016,2017,2018,2019,2020,2021,"2022*"]
[null,"Doutorado",16,14,15,13,11,11,21]
[null,"Mestrado",127,244,266,228,190,203,139]
[null,"Especialização",80,541,197,71,184,63,57]
[null,"Total",223,799,478,312,385,277,{"$f":"SUM(I32:I34)","v":217}]
[]
[null,"Quadro – Alunos matriculados em cursos e programas de pós-graduação da UEMS. Consolidados por ano."]
[]
[null,"Pós-Graduação",2016,2017,2018,2019,2020,2021,"2022*"]
[null,"Doutorado",25,39,53,64,60,61,71]
[null,"Mestrado",124,367,593,668,613,584,522]
[null,"Especialização",80,617,735,219,238,218,131]
[null,"Total",229,1023,1381,951,911,863,{"$f":"SUM(I40:I42)","v":724}]
[]
[]
[null,"Quadro - Histórico do número de concluintes em cursos e programas de pós-graduação da UEMS"]
[]
[null,"Pós-Graduação",2016,2017,2018,2019,2020,2021,"2022*"]
[null,"Doutorado","-","-","-",15,8,4,8]
[null,"Mestrado","-",2,108,206,132,83,67]
[null,"Especialização","-",1,376,94,21,29,29]
[null,"Total",0,3,484,315,161,116,{"$f":"SUM(I49:I51)","v":104}]
[]
[null,"Quadro - Histórico do número de evadidos em cursos e programas de pós-graduação da UEMS"]
[]
[null,"Pós-Graduação",2016,2017,2018,2019,2020,2021,"2022*"]
[null,"Doutorado","-",1,1,1,"-","-",4]
[null,"Mestrado","-",8,35,37,25,21,22]
[null,"Total Stricto Sensu**",0,2.2167487684729099E-2,5.5727554179566603E-2,5.1912568306010903E-2,3.7147102526002999E-2,3.25581395348837E-2,{"$f":"(I58+I57)/(I40+I41)","v":4.3844856661045532E-2}]
[null,"Especialização","-",18,230,144,22,18,11]
[null,"Total Especialização***","-",2.91734197730956E-2,0.312925170068027,0.65753424657534199,9.2436974789915999E-2,8.2568807339449601E-2,{"$f":"I60/I42","v":8.3969465648854963E-2}]
[null,"Total geral de evadidos",0,27,266,182,47,39,37]
[null,"**percentual de evadidos em relação ao total de matriculados nos programas stricto sensu"]
[]
[null,"***percentual de evadidos em relação ao total de matriculados nas Especializações"]
[]
[]
[null,"OBS: Dados agrupados por ano, conforme Indicadores SIGPOS julho 2022. O Sigpós foi implantado em 2018."]

{"sheet":"Grafico_historico_pos","index":26,"n_rows":45,"n_cols":10,"rows_kept":45,"cut":false,"hidden":false,"merged":[]}
[]
[]
[]
[]
[]
[]
[]
[]
[]
[]
[null,"Evolução do número de cursos e programas de pós-graduação",null,null,null,null,null,null,null,"Evolução do número de vagas nos cursos e programas de pós-graduação"]
[]
[]
[]
[]
[]
[]
[]
[]
[]
[]
[]
[]
[]
[]
[]
[]
[null,"Evolução do número de ingressantes nos cursos e programas de pós-graduação",null,null,null,null,null,null,null,"Evolução do número de matriculados em cursos e programas de pós-graduação"]
[]
[]
[]
[]
[]
[]
[]
[]
[]
[]
[]
[]
[]
[]
[]
[]
[null,"Evolução do número de concluintes em cursos e programas de pós-graduação",null,null,null,null,null,null,null,"Evolução do número de evadidos em cursos e programas de pós-graduação"]

{"sheet":"Dados_stricto","index":27,"n_rows":63,"n_cols":11,"rows_kept":63,"cut":false,"hidden":false,"merged":[]}
[]
[]
[]
[]
[]
[]
[]
[]
[]
[]
[]
[null,"Objetivo: Apresentar os dados da pós-graduação stricto sensu relativos a vagas, ingressantes, matriculados, concluintes, afastados e evadidos "]
[]
[null,"Alunos matriculados"]
[null,"Em 2022",593,"(Sigpós, sem duplicações)"]
[]
[null,"Alunos concluintes "]
[null,"Em 2022",75,"(Sigpós, sem duplicações)"]
[]
[null,"Evadidos e afastados"]
[null,"Em 2022",{"$f":"SUM(J62,K62)","v":24},"(Sigpós, sem duplicações)"]
[]
[]
[null,"Quadro - Número de vagas (V), ingressantes (I), matriculados (M), concluintes (C), evadidos (E) e afastados (A) em Programas de Pós-graduação Stricto Sensu"]
[null,"Curso","Unidade Universitária","Nível","Período","V","I","M","C","E","A"]
[null,"Agronomia: Produção Vegetal ","Aquidauana","Mestrado Acadêmico","2022/1",20,10,34,8,2,0]
[null,null,null,null,"2022/2"]
[null,"Agronomia: Sustentabilidade na Agricultura","Cassilândia","Mestrado Acadêmico","2022/1",20,8,24,4,4,1]
[null,null,null,null,"2022/2"]
[null,"Desenvolvimento Regional e de Sistemas Produtivos","Ponta Porã","Mestrado Acadêmico","2022/1",0,0,23,2,0,0]
[null,null,null,null,"2022/2"]
[null,"Educação: Educação, Linguagem e Sociedade ","Paranaíba","Mestrado Acadêmico","2022/1",0,0,75,3,4,0]
[null,null,null,null,"2022/2",30,null,1,1]
[null,"Letras: Linguagem: Língua e Literatura ","Campo Grande","Mestrado Acadêmico","2022/1",41,37,90,9,1,0]
[null,null,null,null,"2022/2"]
[null,"Recursos Naturais"," Dourados","Mestrado Acadêmico","2022/1",20,14,46,14,0,0]
[null,null,null,null,"2022/2",null,null,null,4,2]
[null,"Zootecnia: Produção Animal no Cerrado Pantanal ","Aquidauana","Mestrado Acadêmico","2022/1",15,9,33,8,1,0]
[null,null,null,null,"2022/2",null,null,null,null,1]
[null,"Mestrado acadêmico",null,null,null,{"$f":"SUM(F26:F39)","v":146},{"$f":"SUM(G26:G39)","v":78},326,53,15,1]
[null,"Educação  ","Campo Grande","Mestrado Profissional","2022/1",30,25,72,0,3,0]
[null,null,null,null,"2022/2",null,null,4]
[null,"Educação Científica e Matemática ","Dourados","Mestrado Profissional","2022/1",0,0,47,1,2,1]
[null,null,null,null,"2022/2"]
[null,"Ensino em Saúde ","Dourados","Mestrado Profissional","2022/1",0,0,17,4,0,0]
[null,null,null,null,"2022/2",16,null,null,1]
[null,"História ","Amambai","Mestrado Profissional em Rede ","2022/1",26,18,21,1,0,0]
[null,null,null,null,"2022/2",null,null,null,1]
[null,"Letras ","Dourados","Mestrado Profissional em Rede ","2022/1",10,6,9,0,1,0]
[null,null,null,null,"2022/2"]
[null,"Letras ","Campo Grande","Mestrado Profissional em Rede ","2022/1",25,9,18,0,1,0]
[null,null,null,null,"2022/2"]
[null,"Matemática ","Dourados","Mestrado Profissional em Rede ","2022/1",3,3,13,3,0,0]
[null,null,null,null,"2022/2",null,null,null,1]
[null,"Mestrado profissional ",null,null,null,{"$f":"SUM(F41:F54)","v":110},{"$f":"SUM(G41:G54)","v":61},201,12,7,1]
[null,"Mestrado acadêmico + profissional ",null,null,null,{"$f":"SUM(F40,F55)","v":256},{"$f":"SUM(G40,G55)","v":139},527,65,22,2]
[null,"Agronomia: Produção Vegetal  ","Aquidauana","Doutorado Acadêmico","2022/1",10,6,30,0,0,0]
[null,null,null,null,"2022/2",10,6,30,1,0,0]
[null,"Recursos Naturais ","Dourados","Doutorado Acadêmico","2022/1",9,5,31,0,0,0]
[null,null,null,null,"2022/2",9,5,31,3,0,0]
[null,"Doutorado",null,null,null,{"$f":"SUM(F57:F60)","v":38},{"$f":"SUM(G57:G60)","v":22},122,4,0,0]
[null,"Geral (mestrado + doutorado)",null,null,null,{"$f":"SUM(F40,F55,F61)","v":294},{"$f":"SUM(G40,G55,G61)","v":161},649,69,22,2]
[null,"Fonte: SIGPÓS, julho 2022"]

{"sheet":"demanda_stricto","index":28,"n_rows":43,"n_cols":7,"rows_kept":43,"cut":false,"hidden":false,"merged":[[17,6,18,6],[35,1,35,3],[38,1,38,3],[39,1,39,3],[17,4,17,5],[17,1,18,1],[17,2,18,2],[17,3,18,3],[26,1,26,3],[34,1,34,3]]}
[]
[]
[]
[]
[]
[]
[]
[]
[]
[]
[null,"Objetivo: Apresentar a relação candidato x vaga representando a procura por mestrados e doutorados"]
[]
[null,"Fórmula de cálculo: DPPGr = NI/NV"]
[null,"NI é nº de candidatos inscritos no processo seletivo do mestrado e/ou doutorado"]
[null,"NV é nº de vagas no processo seletivo do mestrado e/ou doutorado"]
[]
[null,"Quadro - Número de vagas (V) e inscritos (I) nos processos seletivos dos Programas de Pós-graduação Stricto Sensu"]
[null,"Curso","Unidade Universitária","Nível","Turma 2022",null,"Relação candidato x vaga"]
[null,null,null,null,"V","I"]
[null,"Agronomia: Produção Vegetal","Aquidauana","Mestrado Acadêmico",20,16,{"$f":"16/20","v":0.8}]
[null,"Agronomia: Sustentabilidade na Agricultura","Cassilândia","Mestrado Acadêmico",30,11,{"$f":"F21/E21","v":0.36666666666666664}]
[null,"Desenvolvimento Regional e de Sistemas Produtivos","Ponta Porã","Mestrado Acadêmico",10,38,{"$f":"F22/E22","v":3.8}]
[null,"Educação: Educação, Linguagem e Sociedade","Paranaíba","Mestrado Acadêmico",30,74,2.4666666666666668]
[null,"Letras: Linguagem: Língua e Literatura ","Campo Grande","Mestrado Acadêmico",41,89,2.1707317073170733]
[null,"Recursos Naturais"," Dourados","Mestrado Acadêmico",20,43,2.15]
[null,"Zootecnia: Produção Animal no Cerrado Pantanal ","Aquidauana","Mestrado Acadêmico",15,11,0.73333333333333328]
[null,"Total Mestrado acadêmico",null,null,{"$f":"SUM(E20:E26)","v":166},{"$f":"SUM(F20:F26)","v":282},{"$f":"F27/E27","v":1.6987951807228916}]
[null,"Educação  ","Campo Grande","Mestrado Profissional",30,246,{"$f":"F28/E28","v":8.1999999999999993}]
[null,"Educação Científica e Matemática*","Dourados","Mestrado Profissional","-","-","-"]
[null,"Ensino em Saúde ","Dourados","Mestrado Profissional",16,21,{"$f":"F30/E30","v":1.3125}]
[null,"História ","Amambai","Mestrado Profissional em Rede ",26,18,0.69230769230769229]
[null,"Letras"," Dourados","Mestrado Profissional em Rede ",10,6,0.6]
[null,"Letras","Campo Grande","Mestrado Profissional em Rede ",25,9,0.36]
[null,"Matemática","Dourados","Mestrado Profissional em Rede ",3,3,1]
[null,"Total Mestrado profissional ",null,null,{"$f":"SUM(E28:E34)","v":110},{"$f":"SUM(F28:F34)","v":303},{"$f":"F35/E35","v":2.7545454545454544}]
[null,"Total Mestrado (mestrado acadêmico + profissional)",null,null,{"$f":"E27+E35","v":276},{"$f":"F27+F35","v":585},2.1195652173913042]
[null,"Agronomia: Produção Vegetal","Aquidauana","Doutorado Acadêmico",10,11,1.1000000000000001]
[null,"Recursos Naturais","Dourados","Doutorado Acadêmico",15,20,1.3333333333333333]
[null,"Total Doutorado",null,null,{"$f":"SUM(E37:E38)","v":25},{"$f":"SUM(F37:F38)","v":31},1.24]
[null,"Total geral (mestrado + doutorado)",null,null,{"$f":"E36+E39","v":301},{"$f":"F36+F39","v":616},2.0465116279069768]
[null,"*Não abriu processo seletivo até o momento."]
[]
[null,"Fonte: Financeiro/Sigpós 2022"]

{"sheet":"demanda_lato","index":29,"n_rows":32,"n_cols":6,"rows_kept":32,"cut":false,"hidden":false,"merged":[[18,1,19,1],[18,2,19,2],[18,3,18,4],[18,5,19,5],[28,1,28,2]]}
[]
[]
[]
[]
[]
[]
[]
[]
[]
[]
[null,"Objetivo: Apresentar a relação candidato x vaga, representando a procura pelos cursos de especialização"]
[]
[null,"Fórmula de cálculo: DPPGr = NI/NV"]
[null,"NI é nº de candidatos inscritos no processo seletivo da especialização"]
[null,"NV é nº de vagas no processo seletivo da especialização"]
[]
[]
[null,"Quadro - Número de vagas (V) e inscritos (I) nos processos seletivos nos Cursos de Pós-graduação Lato Sensu*"]
[null,"Curso","Unidade Universitária/Polo","Turma 2022",null,"Relação candidato x vaga"]
[null,null,null,"V","I"]
[null,"Direitos Difusos e Coletivos","Dourados ",0,0]
[null,"Gestão do Turismo","Campo Grande ",30,55,{"$f":"E22/D22","v":1.8333333333333333}]
[null,"Residência Multiprofissional em Saúde da Família ","Campo Grande",0,0]
[null,"Residência Multiprofissional em Saúde da Família (turma 2)","Campo Grande",12,161,{"$f":"E24/D24","v":13.416666666666666}]
[null,"Gestão Pública","Maracaju",0,0]
[null,"Direito e Vulnerabilidade","Naviraí",0,0]
[null,"Direitos Humanos","Paranaíba ",20,90,{"$f":"E27/D27","v":4.5}]
[null,"Políticas Públicas, Cultura e Sociedade","Paranaíba",0,0]
[null,"Total Especialização",null,{"$f":"SUM(D21:D28)","v":62},{"$f":"SUM(E21:E28)","v":306},{"$f":"E29/D29","v":4.935483870967742}]
[null,"Fonte: Financeiro/Sigpós 2022"]
[]
[null,"*Demais cursos não abriram processos seletivos até o momento."]

{"sheet":"Nota CAPES","index":30,"n_rows":33,"n_cols":16,"rows_kept":33,"cut":false,"hidden":false,"merged":[[14,3,15,3],[14,1,15,1],[14,2,15,2],[14,4,14,15]]}
[]
[]
[]
[]
[]
[]
[]
[]
[]
[]
[null,"Objetivo: Informar a notas CAPES dos Programas de Pós-Graduação stricto sensu"]
[]
[]
[null,"Quadro – Histórico da nota CAPES dos Programas de pós-graduação stricto sensu"]
[null,"Curso","Nível","Unidade Universitária ","Avaliação"]
[null,null,null,null,2009,2010,2011,2014,2013,2015,2016,2017,2018,2019,2020,2021]
[null,"Agronomia: Produção Vegetal  ","Mestrado/Doutorado Acadêmico","Aquidauana",3,null,3,3,null,null,4,4,4,4,4,4]
[null,"Agronomia: Sustentabilidade na Agricultura","Mestrado Acadêmico","Cassilândia",null,null,null,3,null,null,null,3,3,3,3,3]
[null,"Desenvolvimento Regional e de Sistemas Produtivos","Mestrado Acadêmico","Ponta Porã",null,null,null,3,null,null,null,3,3,3,3,3]
[null,"Educação: Educação, Linguagem e Sociedade","Mestrado Acadêmico","Paranaíba",null,null,3,3,null,null,null,3,3,3,3,3]
[null,"Zootecnia: Produção Animal no Cerrado Pantanal ","Mestrado Acadêmico","Aquidauana",null,3,null,null,null,3,null,3,3,3,3,3]
[null,"Letras: Língua e Literatura ","Mestrado Acadêmico","Campo Grande",null,null,3,null,null,3,null,3,3,3,3,3]
[null,"Recursos Naturais ","Mestrado/Doutorado Acadêmico","Dourados",null,3,null,null,null,4,null,4,4,4,4,4]
[null,"Educação ","Mestrado Profissional","Campo Grande",null,null,null,3,null,null,null,4,4,4,4,4]
[null,"Educação Científica e Matemática ","Mestrado Profissional","Dourados",null,null,null,null,null,null,3,3,3,3,3,3]
[null,"Ensino em Saúde ","Mestrado Profissional","Dourados",null,null,null,3,null,null,null,3,3,3,3,3]
[null,"História","Mestrado Profissional em Rede","Amambai",null,null,null,null,4,null,null,4,4,4,4,4]
[null,"Letras ","Mestrado Profissional em Rede","Dourados",null,null,null,null,4,null,null,4,4,4,4,4]
[null,"Letras ","Mestrado Profissional em Rede","Campo Grande"]
[null,"Matemática ","Mestrado Profissional em Rede","Dourados",null,null,3,null,null,5,null,5,5,5,5,5]
[null,"Fonte : CAPES, julho/2022"]
[]
[null,"Aguardando resultado da Avaliação Quadrienal"]

{"sheet":"Internacionalização","index":31,"n_rows":33,"n_cols":12,"rows_kept":33,"cut":false,"hidden":false,"merged":[[13,5,14,5],[13,6,14,6],[31,1,31,3],[13,1,14,1],[13,2,14,2],[13,3,14,3],[13,4,14,4],[13,11,14,11],[13,10,14,10],[13,7,14,7],[13,8,14,8],[13,9,14,9]]}
[]
[]
[]
[]
[]
[]
[]
[]
[]
[]
[null,"Objetivo: Quantificar o número de discentes estrangeiros matriculados nos Programas de Pós-graduação Stricto Sensu da UEMS"]
[]
[null,"Quadro – Alunos estrangeiros regularmente matriculados em Programas de Pós-graduação stricto sensu"]
[null,"Curso","Nível","Unidade Universitária ",2019,"País de origem",2020,"País de origem",2021,"País de origem",2022,"País de origem"]
[]
[null,"Agronomia: Produção Vegetal  ","Doutorado Acadêmico","Aquidauana","-","-","-","-","-","-","-","-"]
[null,"Agronomia: Produção Vegetal  ","Mestrado Acadêmico","Aquidauana","-","-",1,"Haiti",1,"Haiti",1,"Haiti"]
[null,"Agronomia: Sustentabilidade na Agricultura","Mestrado Acadêmico","Cassilândia","-","-",1,"Honduras",1,"Honduras","-","-"]
[null,"Desenvolvimento Regional e de Sistemas Produtivos","Mestrado Acadêmico","Ponta Porã","-","-",1,"Cabo Verde",1,"Cabo Verde",1,"Cabo Verde"]
[null,"Educação: Educação, Linguagem e Sociedade","Mestrado Acadêmico","Paranaíba","-","-",1,"Peru",1,"Peru","-","-"]
[null,"Zootecnia: Produção Animal no Cerrado Pantanal ","Mestrado Acadêmico","Aquidauana","-","-","-","-",1,"Guatemala",2,"Guatemala e Moçambique"]
[null,"Letras: Língua e Literatura ","Mestrado Acadêmico","Campo Grande",1,"Paraguai","-","-","-","-",1,"Canadá"]
[null,"Recursos Naturais ","Doutorado Acadêmico","Dourados",1,"Benin",2,"Guatemala e Venezuela","-","-",2,"Guatemala e Venezuela"]
[null,"Recursos Naturais ","Mestrado Acadêmico","Dourados",1,"Guatemala","-","-","-","-","-","-"]
[null,"Educação ","Mestrado Profissional","Campo Grande","-","-","-","-","-","-","-","-"]
[null,"Educação Científica e Matemática ","Mestrado Profissional","Dourados",1,"Honduras ","-","-","-","-","-","-"]
[null,"Ensino em Saúde ","Mestrado Profissional","Dourados",1,"Peru","-","-",1,"Moçambique",1,"Moçambique"]
[null,"História","Mestrado Profissional em Rede","Amambai","-","-","-","-","-","-","-","-"]
[null,"Letras ","Mestrado Profissional em Rede","Dourados","-","-","-","-","-","-","-","-"]
[null,"Letras ","Mestrado Profissional em Rede","Campo Grande","-","-","-","-","-","-","-","-"]
[null,"Matemática ","Mestrado Profissional em Rede","Dourados","-","-","-","-","-","-","-","-"]
[null,"Total ",null,null,5,"-",6,"-",6,null,8]
[null,"Fonte: Sigpós julho/2022."]

{"sheet":"Apoio_publicacao","index":32,"n_rows":76,"n_cols":11,"rows_kept":76,"cut":false,"hidden":false,"merged":[[12,1,13,8],[73,1,73,2],[73,3,73,4],[14,1,15,1],[14,2,15,2],[14,3,15,3],[14,5,14,6],[14,7,14,8],[45,1,46,1],[45,2,46,2],[45,5,45,6],[45,3,45,4],[17,1,17,4],[20,1,20,4],[23,1,23,4],[26,1,26,4],[14,4,15,4],[14,9,14,10],[45,7,45,8],[73,5,73,6],[43,1,44,6],[28,1,28,4],[32,1,32,4],[34,1,34,4],[36,1,36,4],[38,1,38,4],[39,1,39,4],[70,1,70,4]]}
[]
[]
[]
[]
[]
[]
[]
[]
[]
[]
[null,"Objetivo: Indicar a demanda recebida e a demanda atendida referente a concessão de recursos financeiros à docentes para apoio a publicação"]
[]
[null,"Quadro - Demanda recebida e demanda atendida referente a Edital de Apoio a Publicação, de docentes solicitantes com vínculos com Programas de Pós-graduação, ordenados por área da CAPES"]
[]
[null,"Programas","Nível","Unidade Universitária ","Área na CAPES","Edital 05/2020",null,"Edital 10/2021",null,"Edital 060/2022"]
[null,null,null,null,null,"Demanda Recebida","Demanda Atendida","Demanda Recebida","Demanda Atendida","Demanda Recebida","Demanda Atendida"]
[null,"Recursos Naturais ","Mestrado/Doutorado Acadêmico","Dourados","Ciências Ambientais",53,53,33,33,1,1]
[null,"Total por Área",null,null,null,{"$f":"F17","v":53},{"$f":"G17","v":53},33,33,1,1]
[null,"Agronomia: Produção Vegetal  ","Mestrado/Doutorado Acadêmico","Aquidauana","Ciências Agrárias",23,21,18,18,5,4]
[null,"Agronomia: Sustentabilidade na Agricultura","Mestrado Acadêmico","Cassilândia","Ciências Agrárias",20,20,15,15,16,15]
[null,"Total por Área",null,null,null,43,41,33,33,{"$f":"SUM(J19:J20)","v":21},{"$f":"SUM(K19:K20)","v":19}]
[null,"Educação ","Mestrado Profissional","Campo Grande","Educação",27,25,16,16,5,3]
[null,"Educação: Educação, Linguagem e Sociedade","Mestrado Acadêmico","Paranaíba","Educação",18,18,24,22]
[null,"Total por Área",null,null,null,45,43,40,38,{"$f":"SUM(J22)","v":5},{"$f":"SUM(K22)","v":3}]
[null,"Educação Científica e Matemática ","Mestrado Profissional","Dourados","Ensino",1,1,7,3,1,1]
[null,"Ensino em Saúde ","Mestrado Profissional","Dourados","Ensino",12,12,3,3]
[null,"Total por Área",null,null,null,13,13,10,6,{"$f":"SUM(J25)","v":1},{"$f":"SUM(K25)","v":1}]
[null,"História","Mestrado Profissional em Rede","Amambai","História",13,13,9,9,4,3]
[null,"Total por Área",null,null,null,{"$f":"F28","v":13},{"$f":"G28","v":13},9,9,4,3]
[null,"Letras: Língua e Literatura ","Mestrado Acadêmico","Campo Grande","Linguística e Literatura",19,18,17,17,2,2]
[null,"Letras ","Mestrado Profissional em Rede","Dourados","Linguística e Literatura",null,null,9,7]
[null,"Letras ","Mestrado Profissional em Rede","Campo Grande","Linguística e Literatura",null,null,"-","-"]
[null,"Total por Área",null,null,null,{"$f":"SUM(F30:F32)","v":19},{"$f":"SUM(G30:G32)","v":18},26,24,2,2]
[null,"Matemática ","Mestrado Profissional em Rede","Dourados","Matemática/Probabilidade e Estatística",5,5,2,1]
[null,"Total por Área",null,null,null,{"$f":"F34","v":5},{"$f":"G34","v":5},2,1,0,0]
[null,"Desenvolvimento Regional e de Sistemas Produtivos","Mestrado Acadêmico","Ponta Porã","Planejamento Urbano e Regional/Demografia",11,11,6,5,3,3]
[null,"Total por Área",null,null,null,{"$f":"F36","v":11},{"$f":"G36","v":11},6,5,3,3]
[null,"Zootecnia: Produção Animal no Cerrado Pantanal ","Mestrado Acadêmico","Aquidauana","Zootecnia e Recursos Pesqueiro",18,17,4,4,2,2]
[null,"Total por Área",null,null,null,{"$f":"F38","v":18},{"$f":"G38","v":17},4,4,2,2]
[null,"Total Geral",null,null,null,{"$f":"SUM(F21,F24,F27,F29,F33,F35,F37,F39,F18)","v":220},{"$f":"SUM(G21,G24,G27,G29,G33,G35,G37,G39,G18)","v":214},163,153,39,34]
[null,"Fonte: Financeiro PROPPI julho/2022"]
[]
[]
[null,"Quadro - Demanda recebida e demanda atendida referente a Edital de Apoio a Publicação, de docentes solicitantes com vínculos com Cursos de Graduação da UEMS - ordenados por área da CAPES"]
[]
[null,"Curso de Graduação","Unidade Universitária ","Edital 05/2020",null,"Edital 10/2021",null,"Edital 060/2022"]
[null,null,null,"Demanda Recebida","Demanda Atendida","Demanda Recebida","Demanda Atendida","Demanda Recebida","Demanda Atendida"]
[null,"Agronomia","Aquidauna","-","-","-","-",3,3]
[null,"Agronomia","Cassilândia","-","-","-","-",1,1]
[null,"Artes Cênicas, Teatro e Dança","Campo Grande","-","-",5,4,"-","-"]
[null,"Ciências Sociais","Paranaíba","-","-",6,6,"-","-"]
[null,"Ciências Sociais","Amambaí","-","-",1,1,"-","-"]
[null,"Ciências Biológicas","Mundo Novo","-","-",11,11,1,1]
[null,"Direito","Dourados","-","-",4,4,"-","-"]
[null,"Direito","Naviraí","-","-",5,5,9,9]
[null,"Direito","Paranaíba","-","-",17,17,1,1]
[null,"Pedagogia","Paranaíba","-","-",3,3,"-","-"]
[null,"Pedagogia EAD","Dourados","-","-","-","-",2,2]
[null,"Letras","Campo Grande","-","-",2,2,"-","-"]
[null,"Letras","Dourados","-","-",2,2,"-","-"]
[null,"Letras","Jardim","-","-",4,2,"-","-"]
[null,"Geografia","Campo Grande","-","-",13,13,"-","-"]
[null,"Geografia","Jardim","-","-",1,1,4,1]
[null,"Ciências Econômicas","Ponta Porã","-","-",1,1,"-","-"]
[null,"Engenharia Ambiental e Sanitária","Dourados","-","-",1,1,1,1]
[null,"Engenharia Alimentos","Naviraí","-","-","-","-",4,4]
[null,"Zootecnia","Aquidauana","-","-",2,2,"-","-"]
[null,"Turismo","Campo Grande","-","-",6,6,"-","-"]
[null,"Turismo","Dourados","-","-",2,2,1,1]
[null,"Medicina","Campo Grande","-","-",7,7,2,2]
[null,"Total Geral",null,null,null,{"$f":"SUM(F48:F70)","v":93},{"$f":"SUM(G48:G70)","v":90},29,26]
[]
[null,"Quadro – Síntese de demanda recebida e atendida por Edital"]
[null,"Edital 05/2020",null,"Edital 10/2021",null,"Edital 060/2022"]
[null,"Demanda Recebida","Demanda Atendida","Demanda Recebida","Demanda Atendida","Demanda Recebida","Demanda Atendida"]
[null,220,214,256,243,{"$f":"SUM(H71,J40)","v":68},{"$f":"SUM(I71,K40)","v":60}]

{"sheet":"Historico_bolsas","index":33,"n_rows":78,"n_cols":10,"rows_kept":78,"cut":false,"hidden":false,"merged":[[25,1,25,2],[28,1,30,8],[53,1,53,2],[68,2,68,3],[68,4,68,5],[68,1,69,1],[68,6,68,7]]}
[]
[]
[]
[]
[]
[]
[]
[]
[]
[]
[null,"Objetivo: Apresentar a série histórica envolvendo dados referentes a média de bolsas utilizadas pelos programas de pós-graduação"]
[]
[null,"Quadro – Média de utilização de bolsas CAPES* concedidas aos Programas de Pós-graduação Stricto Sensu "]
[null,"Curso","Nível",2016,2017,2018,2019,2020,2021,"2022**"]
[null,"Agronomia: Produção Vegetal (Aquidauana)","Mestrado Acadêmico",25,25,25,25,23,15,{"$f":"96/7","v":13.714285714285714}]
[null,"Agronomia: Sustentabilidade na Agricultura (Cassilândia)","Mestrado Acadêmico",5,5,5,5,5,5,{"$f":"40/7","v":5.7142857142857144}]
[null,"Desenvolvimento Regional e de Sistemas Produtivos (Ponta Porã)","Mestrado Acadêmico",4,4,4,4,4,4,{"$f":"30/7","v":4.2857142857142856}]
[null,"Educação: Educação, Linguagem e Sociedade Paranaíba)","Mestrado Acadêmico",8,8,8,7,7,6,{"$f":"38/7","v":5.4285714285714288}]
[null,"Zootecnia: Produção Animal no Cerrado Pantanal (Aquidauana)","Mestrado Acadêmico",14,14,14,14,14,6,{"$f":"42/7","v":6}]
[null,"Letras: Língua e Literatura (Campo Grande)","Mestrado Acadêmico",9,9,9,9,6,6,{"$f":"97/7","v":13.857142857142858}]
[null,"Recursos Naturais (Dourados)","Mestrado Acadêmico",20,20,20,20,20,15,{"$f":"32/7","v":4.5714285714285712}]
[null,"Total Mestrado",null,85,85,85,84,79,57,{"$f":"SUM(J15:J21)","v":53.571428571428569}]
[null,"Agronomia: Produção Vegetal (Aquidauana)","Doutorado Acadêmico",2,2,2,4,6,8,{"$f":"76/7","v":10.857142857142858}]
[null,"Recursos Naturais (Dourados)","Doutorado Acadêmico",9,9,9,10,11,13,{"$f":"116/7","v":16.571428571428573}]
[null,"Total Doutorado",null,11,11,11,14,17,21,{"$f":"SUM(J23:J24)","v":27.428571428571431}]
[null,"Total geral (mestrado e doutorado)",null,96,96,96,98,96,78,{"$f":"SUM(J25,J22)","v":81}]
[null,"Fonte: Financeiro PROPPI julho 2022"]
[null,"*bolsa CAPES concedida institucionalmente à UEMS, geridas pela instituição"]
[null,"OBS: A redução gradativa das bolsas ocorreu devido ao novo modelo de alocação de bolsas de mestrado e doutorado, aos cursos de pós-graduação stricto sensu, informado pela Coordenação de Aperfeiçoamento de Pessoal de Nível Superior (CAPES) nas portarias nº18, nº20 e nº21 publicadas em fevereiro de 2020. Para maiores esclarecimentos sobre o novo modelo de distribuição de bolsas segue o link da página da CAPES (https://www.gov.br/capes/pt-br/assuntos/noticias/capes-esclarece-modelo-de-concessao-de-bolsas) "]
[]
[]
[]
[]
[null,"Quadro – Média de utilização de Bolsas Institucionais (PIBAP) de ampla concorrência, concedidas aos Programas de Pós-graduação Stricto Sensu "]
[null,"Curso","Nível",2016,2017,2018,2019,2020,2021,"2022**"]
[null,"Agronomia: Produção Vegetal (Aquidauana)","Mestrado Acadêmico",7,8,9,8,5,6,7]
[null,"Agronomia: Sustentabilidade na Agricultura (Cassilândia)","Mestrado Acadêmico",8,10,10,10,9,8,7]
[null,"Desenvolvimento Regional e de Sistemas Produtivos (Ponta Porã)","Mestrado Acadêmico",6,7,8,8,8,8,6]
[null,"Educação: Educação, Linguagem e Sociedade (Paranaíba)","Mestrado Acadêmico",7,10,10,10,11,17,12]
[null,"Letras: Língua e Literatura (Campo Grande)","Mestrado Acadêmico",10,10,10,9,9,8,10]
[null,"Recursos Naturais (Dourados)","Mestrado Acadêmico",6,3,2,3,7,7,8]
[null,"Zootecnia: Produção Animal no Cerrado Pantanal (Aquidauana)","Mestrado Acadêmico",8,9,10,9,9,10,12]
[null,"Educação (Campo Grande)","Mestrado Profissional",7,9,9,8,9,9,8]
[null,"Educação Científica e Matemática (Dourados)","Mestrado Profissional",8,10,10,10,9,9,11]
[null,"Ensino em Saúde (Dourados)","Mestrado Profissional",4,11,9,9,8,6,3]
[null,"História (Amambai)","Mestrado Profissional em Rede",0,9,10,10,9,9,10]
[null,"Letras (Dourados)","Mestrado Profissional em Rede",6,8,9,9,3,1,1]
[null,"Letras (Campo Grande)","Mestrado Profissional em Rede",5,4,10,9,7,2,1]
[null,"Matemática (Dourados)","Mestrado Profissional em Rede",0,5,10,9,4,6,9]
[null,"Total Mestrado (acadêmico e profissional)",null,82,113,126,125,107,106,{"$f":"SUM(J36:J49)","v":105}]
[null,"Agronomia: Produção Vegetal (Aquidauana)","Doutorado Acadêmico",8,8,8,19,16,14,15]
[null,"Recursos Naturais (Dourados)","Doutorado Acadêmico",9,9,9,17,16,12,11]
[null,"Total Doutorado",null,17,17,17,36,32,26,{"$f":"SUM(J51:J52)","v":26}]
[null,"Total geral (mestrado e doutorado)",null,99,130,143,161,139,132,{"$f":"SUM(J53,J50)","v":131}]
[null,"Fonte: Financeiro PROPPI julho 2022"]
[]
[]
[null,"Quadro – Síntese dos valores investidos por total anual de utilização (cálculo a partir da média mensal)."]
[null,"Programas ",2016,2017,2018,2019]
[null,"Média mensal Mestrado (acadêmico e profissional)",61500,84750,94500,93750]
[null,"Anual (Mestrado (acadêmico e profissional))",738000,1017000,1134000,1125000]
[null,"Média Mensal Doutorado",18700,18700,18700,39600]
[null,"Anual Doutorado",224400,224400,224400,475200]
[null,"Recursos totais anuais investidos",962400,1241400,1358400,1600200]
[null,"Total geral no período",null,5162400]
[null,"OBS: a Partir de 2020 considera-se a quantidade e não mais a média para informar os valores investidos na bolsa PIBAP, observar síntese abaixo "]
[]
[null,"Síntese do número e dos recursos investidos nas bolsas PIBAP Ampla Concorrência (AC) e Ações Afirmativas (AAF) "]
[null,"Curso ",2020,null,2021,null,"2022**"]
[null,null,"Quantidade ","Recursos investidos ","Quantidade ","Recursos investidos ","Quantidade ","Recursos investidos "]
[null,"Mestrado (bolsa AC)",1396,1047000,1329,996750,734,{"$f":"G71*750","v":550500}]
[null,"Doutorado (bolsa AC)",409,449900,354,389400,178,{"$f":"G72*1100","v":195800}]
[null,"Mestrado (bolsa AAF)",6,4500,44,33000,41,{"$f":"G73*750","v":30750}]
[null,"Doutorado (bolsa AAF)","-"," - ","-"," - "," - "," - "]
[null,"Totais",1811,1501400,1727,1419150,{"$f":"SUM(G71:G73)","v":953},{"$f":"SUM(H71:H73)","v":777050}]
[null,"OBS: a Partir de 2020 considera-se a quantidade e não mais a média para informar os valores investidos na bolsa PIBAP"]
[]
[null,"**Dados referem-se ao 1º semestre de 2022"]

{"sheet":"Graficos_bolsas","index":34,"n_rows":65,"n_cols":14,"rows_kept":65,"cut":false,"hidden":false,"merged":[[11,10,12,16],[11,1,12,7],[46,1,47,8],[46,10,47,17],[27,1,28,8],[27,10,28,17],[41,1,42,7]]}
[]
[]
[]
[]
[]
[]
[]
[]
[]
[]
[]
[null,"Evolução do número de bolsas PIBAP de ampla concorrência por total geral, mestrado e doutorado (a partir da média de utilização)",null,null,null,null,null,null,null,null,"Evolução do número de bolsas PIBAP de ampla concorrência mestrado e doutorado (a partir da média de utilização)"]
[]
[]
[]
[]
[]
[]
[]
[]
[]
[]
[]
[]
[null,"** 2022 dados do 1º semestre "]
[]
[]
[null,"Valores investidos por total anual de utilização (cálculo a partir da média mensal de bolsas PIBAP por ampla concorrência)",null,null,null,null,null,null,null,null,"Número e recursos investidos nas bolsas PIBAP Ampla Concorrência (AC) e Ações Afirmativas (AAF)"]
[]
[]
[]
[]
[]
[]
[]
[]
[]
[]
[]
[]
[]
[null,"OBS: a Partir de 2020 considera-se a quantidade e não mais a média para informar os valores investidos na bolsa PIBAP, observar síntese abaixo "]
[]
[]
[]
[]
[null,"Evolução do número de bolsas CAPES nos mestrados acadêmicos da UEMS (por média mensal de utilização)",null,null,null,null,null,null,null,null,"Evolução do número de bolsas CAPES nos doutorado (a partir da média de utilização)"]
[]
[]
[]
[]
[]
[]
[]
[]
[]
[]
[]
[]
[]
[]
[]
[]
[]
[null,"Média de utilização de bolsas PIBAP de ampla concorrência nos mestrados acadêmicos e profissionais da UEMS",null,null,null,null,null,null,null,null,null,null,null,"Média mensal de utilização de bolsas PIBAP de ampla concorrência nos doutorados da UEMS"]

{"sheet":"Detalhamento_bolsa_CAPES_PIBAP","index":35,"n_rows":55,"n_cols":31,"rows_kept":55,"cut":false,"hidden":false,"merged":[[13,30,14,30],[13,4,13,5],[13,6,13,7],[13,8,13,9],[13,10,13,11],[38,4,38,5],[38,6,38,7],[38,8,38,9],[38,10,38,11],[38,12,38,13],[13,1,14,1],[13,2,14,2],[13,3,14,3],[13,28,14,28],[13,24,13,25],[13,26,13,27],[13,20,13,21],[13,22,13,23],[38,20,38,21],[38,22,38,23],[38,24,38,25],[38,26,38,27],[38,28,38,29],[38,14,38,15],[38,16,38,17],[38,18,38,19],[13,12,13,13],[13,14,13,15],[13,16,13,17],[13,18,13,19],[13,29,14,29],[44,4,44,5],[45,4,45,5],[46,4,46,5],[47,4,47,5],[48,4,48,5],[39,4,39,5],[40,4,40,5],[41,4,41,5],[42,4,42,5],[43,4,43,5],[44,6,44,7],[45,6,45,7],[46,6,46,7],[47,6,47,7],[48,6,48,7],[39,6,39,7],[40,6,40,7],[41,6,41,7],[42,6,42,7],[43,6,43,7],[44,8,44,9],[45,8,45,9],[46,8,46,9],[47,8,47,9],[48,8,48,9],[39,8,39,9],[40,8,40,9],[41,8,41,9],[42,8,42,9],[43,8,43,9],[44,10,44,11],[45,10,45,11],[46,10,46,11],[47,10,47,11],[48,10,48,11],[39,10,39,11],[40,10,40,11],[41,10,41,11],[42,10,42,11],[43,10,43,11],[44,12,44,13],[45,12,45,13],[46,12,46,13],[47,12,47,13],[48,12,48,13],[39,12,39,13],[40,12,40,13],[41,12,41,13],[42,12,42,13],[43,12,43,13],[44,14,44,15],[45,14,45,15],[46,14,46,15],[47,14,47,15],[48,14,48,15],[39,14,39,15],[40,14,40,15],[41,14,41,15],[42,14,42,15],[43,14,43,15],[44,16,44,17],[45,16,45,17],[46,16,46,17],[47,16,47,17],[48,16,48,17],[39,16,39,17],[40,16,40,17],[41,16,41,17],[42,16,42,17],[43,16,43,17],[39,20,39,21],[40,20,40,21],[41,20,41,21],[42,20,42,21],[43,20,43,21],[44,18,44,19],[45,18,45,19],[46,18,46,19],[47,18,47,19],[39,18,39,19],[40,18,40,19],[41,18,41,19],[42,18,42,19],[43,18,43,19],[39,24,39,25],[40,24,40,25],[41,24,41,25],[42,24,42,25],[43,24,43,25],[44,22,44,23],[45,22,45,23],[46,22,46,23],[47,22,47,23],[39,22,39,23],[40,22,40,23],[41,22,41,23],[42,22,42,23],[43,22,43,23],[39,28,39,29],[40,28,40,29],[41,28,41,29],[42,28,42,29],[43,28,43,29],[44,26,44,27],[45,26,45,27],[46,26,46,27],[47,26,47,27],[39,26,39,27],[40,26,40,27],[41,26,41,27],[42,26,42,27],[43,26,43,27],[49,4,49,5],[50,4,50,5],[49,6,49,7],[50,6,50,7],[49,8,49,9],[50,8,50,9],[44,28,44,29],[45,28,45,29],[46,28,46,29],[47,28,47,29],[48,28,48,29],[48,26,48,27],[44,24,44,25],[45,24,45,25],[46,24,46,25],[47,24,47,25],[48,24,48,25],[48,22,48,23],[44,20,44,21],[45,20,45,21],[46,20,46,21],[47,20,47,21],[48,20,48,21],[48,18,48,19],[49,18,49,19],[50,12,50,13],[50,14,50,15],[50,16,50,17],[50,18,50,19],[49,10,49,11],[50,10,50,11],[49,12,49,13],[49,14,49,15],[49,16,49,17],[50,20,50,21],[50,22,50,23],[50,24,50,25],[50,26,50,27],[50,28,50,29],[49,20,49,21],[49,22,49,23],[49,24,49,25],[49,26,49,27],[49,28,49,29]]}
[]
[]
[]
[]
[]
[]
[]
[]
[]
[]
[null,"Objetivo: Apresentar a quantidade mensal de bolsas PIBAP e CAPES, e valor total investido, referentes a programas de Pós-Graduação stricto sensu"]
[]
[null,"Quadro – Quantidades e valores investidos referentes a bolsas PIBAP de ampla concorrência (AC) e Ações Afirmativas (AAF), no ano de 2022 - por mês "]
[null,"Curso","Nível","Unidade Universitária ","Janeiro",null,"Fevereiro",null,"Março",null,"Abril",null,"Maio ",null,"Junho",null,"Julho",null,"Agosto",null,"Setembro",null,"Outubro",null,"Novembro",null,"Dezembro",null,"Total  AC por curso","Total AAF por curso","Valor investido*"]
[null,null,null,null,"AC","AAF","AC","AAF","AC","AAF","AC","AAF","AC","AAF","AC","AAF","AC","AAF","AC","AAF","AC","AAF","AC","AAF","AC","AAF","AC","AAF"]
[null,"Agronomia: Produção Vegetal","Mestrado Acadêmico","Aquidauana",8,0,8,0,8,0,10,0,10,0,4,0,4,0,null,null,null,null,null,null,null,null,null,null,{"$f":"E16+G16+I16+K16+M16+O16+Q16+S16+U16+W16+Y16+AA16","v":52},{"$f":"F16+H16+J16+L16+N16+P16+R16+T16+V16+X16+Z16+AB16","v":0},{"$f":"SUM(AC16+AD16)*750","v":39000}]
[null,"Agronomia: Sustentabilidade na Agricultura","Mestrado Acadêmico","Cassilândia",10,0,10,0,8,0,6,0,6,0,6,0,4,0,null,null,null,null,null,null,null,null,null,null,{"$f":"E17+G17+I17+K17+M17+O17+Q17+S17+U17+W17+Y17+AA17","v":50},0,{"$f":"SUM(AC17+AD17)*750","v":37500}]
[null,"Desenvolvimento Regional e de Sistemas Produtivos","Mestrado Acadêmico","Ponta Porã",8,0,8,0,8,0,8,0,4,0,4,0,4,0,null,null,null,null,null,null,null,null,null,null,44,0,33000]
[null,"Educação: Educação, Linguagem e Sociedade","Mestrado Acadêmico","Paranaíba",16,5,16,5,11,5,11,5,9,5,11,5,12,5,null,null,null,null,null,null,null,null,null,null,86,35,90750]
[null,"Letras: Língua e Literatura ","Mestrado Acadêmico","Campo Grande",10,0,10,0,10,0,10,0,8,0,10,0,10,0,null,null,null,null,null,null,null,null,null,null,68,0,51000]
[null,"Recursos Naturais","Mestrado Acadêmico","Dourados",9,0,8,0,6,0,8,0,8,0,8,0,6,0,null,null,null,null,null,null,null,null,null,null,53,0,39750]
[null,"Zootecnia: Produção Animal no Cerrado Pantanal ","Mestrado Acadêmico","Aquidauana",8,0,6,0,7,0,16,0,16,0,16,0,16,0,null,null,null,null,null,null,null,null,null,null,85,0,63750]
[null,"Educação ","Mestrado Profissional","Campo Grande",9,0,9,0,9,0,8,0,8,0,6,0,10,0,null,null,null,null,null,null,null,null,null,null,59,0,44250]
[null,"Educação Científica e Matemática ","Mestrado Profissional","Dourados",11,0,11,0,11,0,11,0,11,0,10,0,10,0,null,null,null,null,null,null,null,null,null,null,75,0,56250]
[null,"Ensino em Saúde ","Mestrado Profissional","Dourados",6,0,6,0,2,0,2,0,2,0,2,0,2,0,null,null,null,null,null,null,null,null,null,null,22,0,16500]
[null,"História","Mestrado Profissional em Rede","Amambai",10,0,10,0,10,0,10,0,9,2,9,2,9,2,null,null,null,null,null,null,null,null,null,null,67,6,54750]
[null,"Letras ","Mestrado Profissional em Rede","Dourados",1,0,1,0,1,0,1,0,1,0,1,0,1,0,null,null,null,null,null,null,null,null,null,null,7,0,5250]
[null,"Letras ","Mestrado Profissional em Rede","Campo Grande",0,0,0,0,0,0,0,0,1,0,1,0,1,0,null,null,null,null,null,null,null,null,null,null,3,0,2250]
[null,"Matemática ","Mestrado Profissional em Rede","Dourados",9,0,8,0,10,0,10,0,10,0,10,0,6,0,null,null,null,null,null,null,null,null,null,null,63,0,47250]
[null,"Total mensal (Mestrado acadêmico e profissional)",null,null,{"$f":"SUM(E16:E29)","v":115},{"$f":"SUM(F16:F29)","v":5},111,5,101,5,111,5,103,7,98,7,95,7,null,null,null,null,null,null,null,null,null,null,734,41,581250]
[null,"Agronomia: Produção Vegetal  ","Doutorado Acadêmico","Aquidauana",10,0,10,0,19,0,16,0,16,0,16,0,16,0,null,null,null,null,null,null,null,null,null,null,103,0,{"$f":"SUM(AC31+AD31)*1100","v":113300}]
[null,"Recursos Naturais ","Doutorado Acadêmico","Dourados",5,0,4,0,10,0,18,0,16,0,10,0,12,0,null,null,null,null,null,null,null,null,null,null,75,0,{"$f":"SUM(AC32+AD32)*1100","v":82500}]
[null,"Total mensal Doutorado",null,null,{"$f":"SUM(E31:E32)","v":15},{"$f":"SUM(F31:F32)","v":0},14,0,29,0,34,0,32,0,26,0,28,0,null,null,null,null,null,null,null,null,null,null,178,0,{"$f":"SUM(AC33+AD33)*750","v":133500}]
[null,"Total mensal (Mestrado e Doutorado)",null,null,{"$f":"SUM(E30,E33)","v":130},{"$f":"SUM(F30,F33)","v":5},125,5,130,5,145,5,135,7,124,7,123,7,null,null,null,null,null,null,null,null,null,null,912,41,{"$f":"SUM(AC34+AD34)*1100","v":1048300}]
[null,"*Valor investido por Programa (mestrado +doutorado)"]
[null,"Fonte: Financeiro PROPPI julho/2022"]
[]
[null,"Quadro – Quantidades e valores investidos referente a bolsas CAPES, no ano de 2022 - por mês "]
[null,"Curso","Nível","Unidade Universitária ","Jan",null,"Fev",null,"Mar",null,"Abr",null,"Mai",null,"Jun",null,"Jul",null,"Ago",null,"Set",null,"Out",null,"Nov",null,"Dez",null,"Total",null,"Valor investido"]
[null,"Agronomia: Produção Vegetal  ","Mestrado Acadêmico","Aquidauana",14,null,14,null,14,null,14,null,14,null,13,null,13,null,null,null,null,null,null,null,null,null,null,null,{"$f":"SUM(E40+G40+I40+K40+M40+O40+Q40+S40*U40+W40+Y40+AA40)","v":96},null,{"$f":"AC40*1500","v":144000}]
[null,"Agronomia: Sustentabilidade na Agricultura","Mestrado Acadêmico","Cassilândia",5,null,5,null,6,null,6,null,6,null,6,null,6,null,null,null,null,null,null,null,null,null,null,null,{"$f":"SUM(E41+G41+I41+K41+M41+O41+Q41+S41*U41+W41+Y41+AA41)","v":40},null,{"$f":"AC41*1500","v":60000}]
[null,"Desenvolvimento Regional e de Sistemas Produtivos","Mestrado Acadêmico","Ponta Porã",3,null,3,null,4,null,5,null,5,null,5,null,5,null,null,null,null,null,null,null,null,null,null,null,30,null,45000]
[null,"Educação: Educação, Linguagem e Sociedade","Mestrado Acadêmico","Paranaíba",6,null,4,null,4,null,6,null,6,null,6,null,6,null,null,null,null,null,null,null,null,null,null,null,38,null,57000]
[null,"Letras: Língua e Literatura ","Mestrado Acadêmico","Campo Grande",6,null,6,null,6,null,6,null,6,null,6,null,6,null,null,null,null,null,null,null,null,null,null,null,42,null,63000]
[null,"Recursos Naturais ","Mestrado Acadêmico","Dourados",14,null,13,null,14,null,14,null,14,null,14,null,14,null,null,null,null,null,null,null,null,null,null,null,97,null,145500]
[null,"Zootecnia: Produção Animal no Cerrado Pantanal ","Mestrado Acadêmico","Aquidauana",6,null,3,null,3,null,5,null,5,null,5,null,5,null,null,null,null,null,null,null,null,null,null,null,32,null,48000]
[null,"Total mensal Mestrado",null,null,{"$f":"SUM(E40:E46)","v":54},null,{"$f":"SUM(G40:G46)","v":48},null,{"$f":"SUM(I40:I46)","v":51},null,{"$f":"SUM(K40:K46)","v":56},null,{"$f":"SUM(M40:M46)","v":56},null,{"$f":"SUM(O40:O46)","v":55},null,55,null,null,null,null,null,null,null,null,null,null,null,{"$f":"SUM(AC40:AC46)","v":375},null,562500]
[null,"Agronomia: Produção Vegetal  ","Doutorado Acadêmico","Aquidauana",8,null,8,null,12,null,12,null,12,null,12,null,12,null,null,null,null,null,null,null,null,null,null,null,{"$f":"SUM(E48+G48+I48+K48+M48+O48+Q48+S48*U48+W48+Y48+AA48)","v":76},null,{"$f":"AC48*2200","v":167200}]
[null,"Recursos Naturais ","Doutorado Acadêmico","Dourados",13,null,13,null,18,null,18,null,18,null,18,null,18,null,null,null,null,null,null,null,null,null,null,null,{"$f":"SUM(E49+G49+I49+K49+M49+O49+Q49+S49*U49+W49+Y49+AA49)","v":116},null,{"$f":"AC49*2200","v":255200}]
[null,"Total mensal Doutorado",null,null,{"$f":"SUM(E48:E49)","v":21},null,{"$f":"SUM(G48:G49)","v":21},null,{"$f":"SUM(I48:I49)","v":30},null,{"$f":"SUM(K48:K49)","v":30},null,{"$f":"SUM(M48:M49)","v":30},null,{"$f":"SUM(O48:O49)","v":30},null,30,null,null,null,null,null,null,null,null,null,null,null,{"$f":"AC48+AC49","v":192},null,{"$f":"AE48+AE49","v":422400}]
[null,"Total mensal (Mestrado e Doutorado)",null,null,{"$f":"SUM(E47,E50)","v":75},null,{"$f":"SUM(G47,G50)","v":69},null,{"$f":"SUM(I47,I50)","v":81},null,{"$f":"SUM(K47,K50)","v":86},null,{"$f":"SUM(M47,M50)","v":86},null,{"$f":"SUM(O47,O50)","v":85},null,{"$f":"SUM(Q47,Q50)","v":85},null,null,null,null,null,null,null,null,null,null,null,{"$f":"AC47+AC50","v":567},null,{"$f":"AE47+AE50","v":984900}]
[null,"Fonte: Financeiro PROPPI julho/2022"]
[]
[]
[null,"OBS: O valor da bolsa PIBAP corresponde a 50% do valor da bolsa CAPES, sendo permitido que o aluno receba até 2 PIBAP."]

{"sheet":"Bolsas_CNPq_Fundect","index":36,"n_rows":30,"n_cols":10,"rows_kept":30,"cut":false,"hidden":false,"merged":[[13,8,13,9],[13,3,14,3],[13,4,13,5],[13,6,13,7],[13,1,14,1],[13,2,14,2]]}
[]
[]
[]
[]
[]
[]
[]
[]
[]
[]
[null,"Objetivo: Apresentar a quantidade de bolsas CNPq e FUNDECT referentes a programas de Pós-Graduação stricto sensu"]
[]
[null,"Quadro - Quantidade de bolsas CNPq e Fundect nos Programas de Pós-graduação Stricto Sensu  - por Curso/Ano"]
[null,"Curso","Nível","Unidade Universitária ",2020,null,2021,null,"2022*"]
[null,null,null,null,"CNPq","FUNDECT ","CNPq","FUNDECT ","CNPq","FUNDECT "]
[null,"Agronomia: Produção Vegetal  ","Mestrado Acadêmico","Aquidauana","-",1,"-",1,2,1]
[null,"Agronomia: Sustentabilidade na Agricultura","Mestrado Acadêmico","Cassilândia","-",1,"-",1,"-",1]
[null,"Desenvolvimento Regional e de Sistemas Produtivos","Mestrado Acadêmico","Ponta Porã","-",1,"-",1,"-",1]
[null,"Educação: Educação, Linguagem e Sociedade","Mestrado Acadêmico","Paranaíba","-","-","-",1,"-",1]
[null,"Zootecnia: Produção Animal no Cerrado Pantanal ","Mestrado Acadêmico","Aquidauana","-",1,"-",1,"-","-"]
[null,"Letras: Língua e Literatura ","Mestrado Acadêmico","Campo Grande","-",1,"-",1,"-",1]
[null,"Recursos Naturais ","Mestrado Acadêmico","Dourados",3,"-",3,"-",2,2]
[null,"Total Mestrado",null,null,3,5,3,6,{"$f":"SUM(I16,I22)","v":4},{"$f":"SUM(J16:J22)","v":7}]
[null,"Agronomia: Produção Vegetal  ","Doutorado Acadêmico","Aquidauana","-",1,"-",1,"-",1]
[null,"Recursos Naturais ","Doutorado Acadêmico","Dourados","-",2,"-",2,"-","-"]
[null,"Total Doutorado",null,null,"-",3,"-",3,"-",1]
[null,"Total geral (mestrado e doutorado)",null,null,3,8,3,9,{"$f":"I23","v":4},{"$f":"SUM(J23,J26)","v":8}]
[null,"Fonte: Programas de Pós-graduação, julho 2022"]
[]
[null,"*Dados referem-se ao 1º semestre "]

{"sheet":"Convenio_FAPEMS","index":37,"n_rows":53,"n_cols":19,"rows_kept":53,"cut":false,"hidden":false,"merged":[[13,16,13,18],[26,1,26,3],[13,2,14,2],[32,1,33,1],[32,2,33,2],[32,3,32,5],[32,6,32,8],[32,9,32,11],[32,12,32,14],[32,15,32,17],[13,3,14,3],[13,1,14,1],[13,4,13,6],[13,7,13,9],[13,10,13,12],[13,13,13,15]]}
[]
[]
[]
[]
[]
[]
[]
[]
[]
[]
[null,"Objetivo: Indicar o montante de recursos arrecadados e os executados dos programas de pós-graduação referente ao Convênio FAPEMS"]
[]
[null,"Quadro - Valor monetário referente ao recurso arrecadado com inscrições no processo seletivo e ao efetivamente executado do Convênio FAPEMS - por Programa de Pós-graduação "]
[null,"Programa","Nível","Unidade Universitária ","2015-2016",null,null,2017,null,null,2018,null,null,2019,null,null,2020]
[null,null,null,null,"Valor arrecadado","Valor executado","% Total executado*","Valor arrecadado","Valor executado","% Total executado*","Valor arrecadado","Valor executado","% Total executado*","Valor arrecadado","Valor executado","% Total executado*","Valor arrecadado","Valor executado","% Total executado*"]
[null,"Agronomia: Produção Vegetal  ","Mestrado/Doutorado Acadêmico","Aquidauana",11100,5770.04,0.51982342342342303,5600,4373.8500000000004,0.607418562874251,5800,7106.27,0.76667377777777801,1700,3487.75,0.85693842975206602,0,379.21,0.87260826446281003]
[null,"Agronomia: Sustentabilidade na Agricultura","Mestrado Acadêmico","Cassilândia",3510,1959.73,0.55832763532763496,1940,1582.54,0.64995779816513799,1400,1428.62,0.72567737226277396,1650,3119.42,0.95180117647058804,0,0,0.95180117647058804]
[null,"Desenvolvimento Regional e de Sistemas Produtivos","Mestrado Acadêmico","Ponta Porã",9660,9447.2900000000009,0.97798033126294004,4950,4443.82,0.95079466119096501,5844,6407.53,0.99240441967341397,7800,5936.63,0.92855064769590101,0,607.51,0.95005238196361597]
[null,"Educação: Educação, Linguagem e Sociedade","Mestrado Acadêmico","Paranaíba",39600,29278.240000000002,0.73934949494949498,22996.880000000001,18507.7,0.76339172175993397,22700,20679.79,0.80267566644876098,23190,27940.400000000001,0.88864321658065903,6100,1615.61,0.85543598010522703]
[null,"Letras: Língua e Literatura ","Mestrado Acadêmico","Campo Grande",43700,33154.629999999997,0.75868718535469104,27600,26142.39,0.831655259467041,20490,25471.360000000001,0.92350343174637795,16670,23562.29,0.99880757883090598,0,1147.25,1.0093852111377499]
[null,"Recursos Naturais ","Mestrado/Doutorado Acadêmico","Dourados",19100,11014.07,0.57665287958115197,8690.48,12509.82,0.84647296484263701,5200,5387.73,0.87636251427684597,5577,3506.9,0.84056619722107895,0,1049.45,0.86777694575844699]
[null,"Zootecnia: Produção Animal no Cerrado Pantanal ","Mestrado Acadêmico","Aquidauana",6275,3111.6,0.49587250996015902,2600,4306.3999999999996,0.83583098591549299,2900,2648.98,0.85494522292993602,840,2406.9699999999998,0.98881886642885397,0,0,0.98881886642885397]
[null,"Educação ","Mestrado Profissional","Campo Grande",35300,26630.14,0.75439490084985805,23125.9,11536.71,0.65325223916105701,21000,24873.5,0.79370016581492897,5400,8988.61,0.84913876540066202,5800,6046.32,0.86151177533133505]
[null,"Educação Científica e Matemática ","Mestrado Profissional","Dourados",4320,2254.38,0.52184722222222202,4670,4846.67,0.78988320355951103,10390,7761.21,0.76688648090815303,5600,4751.33,0.78517173738991197,0,200,0.79317814251401098]
[null,"Ensino em Saúde ","Mestrado Profissional","Dourados",31010,19262.599999999999,0.62117381489842005,21400,19316.13,0.73609482923106295,12000,16803.75,0.859842881540133,1400,780.89,0.85341695790913197,0,0,0.85341695790913197]
[null,"História","Mestrado Profissional em Rede","Amambai",0,0,0,0,0,0,0,0,0,1900,1091.32,0.57437894736842099,1500,742.99,0.53950294117647102]
[null,"Total geral acumulado",null,null,203575,141882.72,0.69695552007859496,123573.26,107566.03,0.76249450325671897,107724,118568.74,0.84626572869927397,71727,85572.51,0.89536253961365797,13400,11788.34,0.89495961975022797]
[null,"*Refere-se ao total acumulado de cada programa de pós-graduação, de 2015 até 2020"]
[]
[]
[]
[null,"Quadro - Valor monetário referente ao recurso arrecadado e ao efetivamente executado do Convênio FAPEMS - por Curso de Especialização"]
[null,"Especializações","Unidade Universitária ","2015/2016",null,null,2017,null,null,2018,null,null,2019,null,null,2020]
[null,null,null,"Valor arrecadado","Valor executado","% Total executado*","Valor arrecadado","Valor executado","% Total executado*","Valor arrecadado","Valor executado","% Total executado*","Valor arrecadado","Valor executado","% Total executado*","Valor arrecadado","Valor executado","% Total executado*"]
[null,"Direitos Difusos e Coletivos","Dourados",8250,1782.26,0.216031515151515,"-",2772.61,0.55210545454545501,"-","-",0.55210545454545501,3900,894.14,0.66048606060606097,"-",125.35,0.45879506172839501]
[null,"Letras","Dourados",2200,721.17,0.32780454545454502,"-",4.2,0.32971363636363599,2200,2204.16,0.66580227272727299,"-","-",0.66580227272727299,"-","-",0.66580227272727299]
[null,"Língua e Cultura Terena","Campo Grande ",3500,1313.5,0.375285714285714,"-",2186.42,0.99997714285714301,"-","-","-","-","-","-","-","-",0.99997714285714301]
[null,"Linguagem, Questões Ético Raciais e de Gênero","Campo Grande ",700,235.2,0.33600000000000002,"-",70,0.436,"-","-",0.436,"-","-",0.436,"-","-",0.436]
[null,"Sociedade, Cultura E Ambiente","Amambai",160,35.22,0.22012499999999999,720,141.5,1.1045,"-",32,0.23718181818181799,"-","-",0.23718181818181799,"-","-",0.23718181818181799]
[null,"Turismo ","Dourados",1900,426.97,0.22472105263157899,"-","-",0.22472105263157899,"-",412.89,0.442031578947368,"-","-",0.442031578947368,"-","-",0.442031578947368]
[null,"Envelhecimento Humano","Dourados",4290,"-",0,"-",1559.07,0.36341958041958,"-","-",0.36341958041958,"-","-",0.36341958041958,"-","-",0.36341958041958]
[null,"Direitos Humanos","Paranaíba",1950,"-",0,"-",620.1,0.318,"-","-",0.318,"-","-",0.318,"-","-",0.318]
[null,"Estudos Aplicados de Linguagem ","Jardim","-","-","-",2500,397.5,0.159,"-",250,0.25900000000000001,"-","-",0.25900000000000001,"-","-",0.25900000000000001]
[null,"Educação","Paranaíba","-","-","-",1750,1575,0.9,"-",175,1,"-","-","-","-","-",1]
[null,"Políticas Públicas, Cultura e Sociedade","Paranaíba","-","-","-","-","-","-","-","-","-",2760,683.7,0.247717391304348,"-","-",0.247717391304348]
[null,"Coordenação Pedagógica ","Dourados","-","-","-","-","-","-","-","-","-","-","-","-",9600,9133.5499999999993,0.95141145833333296]
[null,"Direito e Vulnerabilidade","Naviraí","-","-","-","-","-","-","-","-","-",5400,1259.6500000000001,null,"-",1293.51,0.47280740740740701]
[null,"Total geral acumulado",null,22950,4514.32,0.19670239651416099,4970,9326.4,0.49572779369627501,2200,2200,0.53256042496679901,9300,2837.49,0.47889928970065998,9600,10552.41,0.60037984496123997]
[null,"*Refere-se ao total acumulado de cada programa de pós-graduação, de 2015 até 2020"]
[]
[null,"Fonte: Financeiro PROPPI, janeiro 2021"]
[]
[null,"Convênio encerrado em 2020, transferido para Convênio FUNAEPE"]

{"sheet":"Convenio FUNAEPE","index":38,"n_rows":55,"n_cols":11,"rows_kept":55,"cut":false,"hidden":false,"merged":[[13,10,14,10],[13,4,13,5],[13,6,13,7],[13,8,13,9],[33,3,33,4],[33,5,33,6],[33,7,33,8],[33,9,34,9],[33,1,34,1],[33,2,34,2],[27,1,27,3],[13,1,14,1],[13,2,14,2],[13,3,14,3]]}
[]
[]
[]
[]
[]
[]
[]
[]
[]
[]
[null,"Objetivo: Indicar o montante de recursos arrecadados e os executados dos programas de pós-graduação referente ao Convênio FUNAEPE"]
[]
[null,"Quadro - Valor monetário referente ao recurso arrecadado com inscrições no processo seletivo e ao efetivamente executado do Convênio Funaepe - por Programa de Pós-graduação "]
[null,"Programa","Nível","Unidade Universitária ",2020,null,2021,null,2022,null,"Total geral Executado (%) "]
[null,null,null,null,"Valor arrecadado*","Valor executado no ano** ","Valor arrecadado no ano ","Valor executado no ano** ","Valor arrecadado no ano ","Valor executado no ano** "]
[null,"Agronomia: Produção Vegetal  ","Mestrado/Doutorado Acadêmico","Aquidauana",3631.38,2300,7371.48,3635.94,542.95000000000005,2640.93,{"$f":"SUM(J16,H16,F16)/SUM(I16,G16,E16)","v":0.74285563334231197}]
[null,"Agronomia: Sustentabilidade na Agricultura","Mestrado Acadêmico","Cassilândia",3576.11,637.77,4314.49,673.61,892.95,105.63,{"$f":"SUM(J17,H17,F17)/SUM(I17,G17,E17)","v":0.16132543219996473}]
[null,"Desenvolvimento Regional e de Sistemas Produtivos","Mestrado Acadêmico","Ponta Porã",1652.94,240.59,5391.32,1445.12,6351.75,1189.6300000000001,0.21464152385673049]
[null,"Educação: Educação, Linguagem e Sociedade","Mestrado Acadêmico","Paranaíba",14811.73,2082.8200000000002,32950.01,11649.29,7942.95,3122.33,0.30256770121151383]
[null,"Letras: Língua e Literatura ","Mestrado Acadêmico","Campo Grande",535.65,84.16,18473.93,2329.23,3860.55,11339.39,0.60134244973684003]
[null,"Recursos Naturais ","Mestrado/Doutorado Acadêmico","Dourados",9501.23,1675.1,16439.61,3110.83,360.55,1909.43,0.25456297176689141]
[null,"Zootecnia: Produção Animal no Cerrado Pantanal ","Mestrado Acadêmico","Aquidauana",1078.02,196.4,2516.4,457.68,1542.95,211.93,0.16857068889334423]
[null,"Educação ","Mestrado Profissional","Campo Grande",33194.980000000003,6920.15,53643.68,21040.58,3960.55,7318.8,0.38854445980311941]
[null,"Educação Científica e Matemática ","Mestrado Profissional","Dourados",5996,948.62,11634.38,2182.44,1142.95,1498.43,0.24659929804675032]
[null,"Ensino em Saúde ","Mestrado Profissional","Dourados",15141.91,4165.45,20795.29,6342.31,2142.9499999999998,179.83,0.28066039655831188]
[null,"História","Mestrado Profissional em Rede","Amambai",1529.41,223.3,4067.79,573.12,1157.05,1351.96,0.31807824702964804]
[null,"Letras","Mestrado Profissional em Rede","Dourados"," - "," - ",633.59,131.41," - "," - ",0.20740541990877379]
[null,"Total geral ",null,null,90649.36,19474.36,178231.97,53571.56,{"$f":"SUM(I16:I26)","v":29898.149999999998},{"$f":"SUM(J16:J26)","v":30868.29},{"$f":"SUM(J28,H28,F28)/SUM(I28,G28,E28)","v":0.34779567191160521}]
[null,"*valor arrecado em processos seletivos de 2019 e anos anteriores, pois encerrou-se o Convênio da Fapems e migrou-se o saldo para FUNAEPE"]
[null,"**Considerando-se o saldo acumulado"]
[null,"Fonte: Financeiro PROPPI julho/2022"]
[]
[null,"Quadro - Valor monetário referente ao recurso arrecadado e ao efetivamente executado do Convênio FAPEMS - por Curso de Especialização"]
[null,"Especializações","Unidade Universitária ",2020,null,2021,null,2022,null,"Total geral Executado (%) "]
[null,null,null,"Valor arrecadado*","Valor executado no ano** ","Valor arrecadado no ano ","Valor executado no ano** ","Valor arrecadado no ano ","Valor executado no ano** "]
[null,"Direitos Difusos e Coletivos","Dourados",6577.36,930.01,10765.74,1815.04," - "," - ",{"$f":"SUM(G36,E36)/SUM(F36,D36)","v":0.15827908505399843}]
[null,"Letras","Dourados",2.79,9.57,27.49,2.83," - "," - ",{"$f":"SUM(G37,E37)/SUM(F37,D37)","v":0.40951122853368566}]
[null,"Língua e Cultura Terena","Campo Grande ",1.8,9.43,27.49,2.83," - "," - ",{"$f":"SUM(G38,E38)/SUM(F38,D38)","v":0.4185728917719358}]
[null,"Linguagem, Questões Ético Raciais e de Gênero","Campo Grande ",396.56,64.69,534.9,83.02," - "," - ",0.15857900500289865]
[null,"Sociedade, Cultura e Ambiente","Amambai",649.4,100.1,787.78,118.43," - "," - ",0.15205471826771874]
[null,"Turismo ","Dourados",1755.24,254.91,1893.62,273.24," - "," - ",0.14474383780139552]
[null,"Envelhecimento Humano","Dourados",2732.65,391.75,2871.03,410.08," - "," - ",0.14308989806698452]
[null,"Direitos Humanos","Paranaíba",2210.41,318.64,27.49,2.83," - "," - ",0.14364806291612672]
[null,"Estudos Aplicados de Linguagem ","Jardim"," - "," - ","-","-","-","-","-"]
[null,"Educação","Paranaíba"," - "," - "," - "," - ","-","-","-"]
[null,"Políticas Públicas, Cultura e Sociedade","Paranaíba",2078.02,300.10000000000002,3116.4,889.78,"-","-",{"$f":"SUM(G46,E46)/SUM(F46,D46)","v":0.22906888545785672}]
[null,"Coordenação Pedagógica ","Dourados",468.17,74.72,606.54999999999995,93.05,"-","-",{"$f":"SUM(G47,E47)/SUM(F47,D47)","v":0.15610577638826856}]
[null,"Direito e Vulnerabilidade","Naviraí",2848.56,407.98,2986.94,426.31,"-","-",0.1429680404421215]
[null,"Residência Multiprofissional em Saúde da Família","Campo Grande "," - "," - "," - "," - ",9114.24,1903.43,{"$f":"I49/H49","v":0.20884132961168458}]
[null,"Total geral",null,19720.96,2861.9,23645.43,4117.4399999999996,{"$f":"H49","v":9114.24},{"$f":"I49","v":1903.43},{"$f":"SUM(I50,G50,E50)/SUM(H50,F50,D50)","v":0.16925806721451325}]
[null,"*valor arrecado em processos seletivos de 2019 e anos anteriores, pois encerrou-se o Convênio da Fapems e migrou-se o saldo para FUNAEPE"]
[]
[null,"Dados referem-se ao 1º semestre de 2022"]
[]
[null,"Fonte: Financeiro PROPPI julho/2022"]

{"sheet":"Convenio_Proap_CAPES","index":39,"n_rows":55,"n_cols":19,"rows_kept":55,"cut":false,"hidden":false,"merged":[[27,8,27,9],[27,10,27,11],[27,16,28,16],[27,14,27,15],[27,12,27,13],[22,1,22,3],[27,1,28,1],[27,2,27,3],[13,6,13,7],[13,4,13,5],[27,4,27,5],[27,6,27,7],[13,22,13,24],[13,16,13,17],[13,18,14,18],[13,1,14,1],[13,2,14,2],[13,3,14,3],[13,8,13,9],[13,12,13,13],[13,14,13,15]]}
[]
[]
[]
[]
[]
[]
[]
[]
[]
[]
[null,"Objetivo: Indicar o montante de recursos solicitados e os executados em programas de pós-graduação referente ao Convênio PROAP/CAPES"]
[]
[null,"Quadro - Valor monetário referente ao recurso solicitado e o efetivamente executado referente ao Convênio PROAP/CAPES - por Curso "]
[null,"Programa","Nível","Unidade Universitária ","2015-2016",null,2017,null,2018,null,2019,null,2020,null,2021,null,2022,null,"Total geral Executado (%) "]
[null,null,null,null,"Valor aprovado no ano ","Valor executado no ano*","Valor aprovado no ano ","Valor executado no ano*","Valor aprovado no ano ","Valor executado no ano*","Valor aprovado no ano ","Valor executado no ano*","Valor aprovado no ano ","Valor executado no ano*","Valor aprovado no ano ","Valor executado no ano*","Valor aprovado no ano ","Valor executado no ano*"]
[null,"Agronomia: Produção Vegetal  ","Mestrado/Doutorado Acadêmico","Aquidauana",76000,34809.160000000003,23467.5,10556.09,29260.54,2566.5,33192.35,8142,31092.36,1593,"-",14779,"-",6814.5,{"$f":"SUM(R16,P16,N16,L16,J16,H16,F16)/SUM(E16,G16,I16,K16,M16)","v":0.41064774218283506}]
[null,"Agronomia: Sustentabilidade na Agricultura","Mestrado Acadêmico","Cassilândia",27000,15791.77,32722.17,3634,9866,7109.66,9866,1844.64,8939.7000000000007,847.88,"-",10362.16,"-",496.68,{"$f":"SUM(R17,P17,N17,L17,J17,H17,F17)/SUM(E17,G17,I17,K17,M17)","v":0.45350192270120082}]
[null,"Desenvolvimento Regional e de Sistemas Produtivos","Mestrado Acadêmico","Ponta Porã",25000,7958.43,17258,1428.23,7450,2306,8058.5,2743.5,6858.5,652.12,"-",794.5,"-",471.64,0.25306646034816249]
[null,"Educação: Educação, Linguagem e Sociedade","Mestrado Acadêmico","Paranaíba",29000,16378.91,13300,3191.3,16099.5,6897.56,16099.5,1144.5999999999999,14899.5,1186.8,"-",921.3,"-","-",{"$f":"SUM(P19,N19,L19,J19,H19,F19)/SUM(E19,G19,I19,K19,M19)","v":0.33244931402652173}]
[null,"Letras: Língua e Literatura ","Mestrado Acadêmico","Campo Grande",25000,10178.35,20560,6095.37,21302.5,6033.1,22593.63,11401.38,27954.3,2118.6999999999998,"-","-","-",797.1,{"$f":"SUM(R20,N20,L20,J20,H20,F20)/SUM(E20,G20,I20,K20,M20)","v":0.31193140166508204}]
[null,"Recursos Naturais ","Mestrado/Doutorado Acadêmico","Dourados",75300,46174.64,9866,8149.2,36917.230000000003,9735,36917.230000000003,2212.5,34817.24,6216.8,"-",10502.6,"-",10620.11,{"$f":"SUM(R21,P21,N21,L21,J21,H21,F21)/SUM(G21,E21,I21,K21,M21)","v":0.48298401023229554}]
[null,"Zootecnia: Produção Animal no Cerrado Pantanal ","Mestrado Acadêmico","Aquidauana",48000,14008.11,7450,4340.5,17258,11962.74,17258,6195,15708,1900.4,"-",22244.52,"-",1703.71,{"$f":"SUM(R22,P22,N22,L22,J22,H22,F22)/SUM(G22,E22,I22,K22,M22)","v":0.59006926964059281}]
[null,"Total geral",null,null,305300,145299.37,124623.67,37394.69,138153.76999999999,46610.559999999998,143985.21,33683.620000000003,140269.6,14515.7,"-",59604.08,"-",{"$f":"SUM(R16:R22)","v":20903.739999999998},{"$f":"SUM(R23,P23,N23,L23,J23,H23,F23)/SUM(E23,G23,I23,K23,M23)","v":0.42003779629364024}]
[null,"*Considerando-se o saldo acumulado"]
[]
[]
[null,"Quadro - Valor monetário referente ao recurso solicitado e o efetivamente executado do Convênio PROAP/CAPES - por rubrica"]
[null,"Rubricas","2015-2016",null,2017,null,2018,null,2019,null,2020,null,2021,null,2022,null,"Total geral Executado (%) "]
[null,null,"Valor aprovado no ano ","Valor executado no ano*","Valor aprovado no ano ","Valor executado no ano*","Valor aprovado no ano ","Valor executado no ano*","Valor aprovado no ano ","Valor executado no ano*","Valor aprovado no ano ","Valor executado no ano*","Valor aprovado no ano ","Valor executado no ano*","Valor aprovado no ano ","Valor executado no ano*"]
[null,"Aquisição de diversos materiais de expediente",5706,"-","-","-","-","-","-","-","-","-","-","-","-","-",0]
[null,"Aquisição de material de processamento de dados",1500,"-","-","-","-","-","-","-","-","-","-","-","-","-",0]
[null,"Aquisição de material elétrico e eletrônico",600,"-","-","-","-","-","-","-","-","-","-","-","-","-",0]
[null,"Aquisição de material laboratorial.",11070,"-","-","-","-","-","-","-","-","-","-","-","-","-",0]
[null,"Aquisição de material para produção ind",10000,"-","-","-","-","-","-","-","-","-","-","-","-","-",0]
[null,"Aquisição de material quimico",28593,"-","-","-","-","-","-","-","-","-","-","-","-","-",0]
[null,"Aquisição de outros materiais de consumo",1000,"-","-","-","-","-","-","-","-","-","-","-","-","-",0]
[null,"Aquisição de passagens no país",40630,32085,15460,10116.799999999999,33981.79,5909.26,18472.349999999999,5840.58,13223.7,"-","-","-","-",5354.49,{"$f":"SUM(P37,J37,H37,F37,D37)/SUM(C37,E37,G37,I37,K37)","v":0.48704263785906032}]
[null,"Aquisição de sementes, mudas e insumos",4100,"-","-","-","-","-","-","-","_","-","-","-","-","-",0]
[null,"Auxilio financeiro a estudantes",38013,6846.41,7962.26,3798.6,15103.01,3954.34,5198.6000000000004,"-",8000,1272,"-","-","-",550.01,{"$f":"SUM(P39,L39,H39,F39,D39)/SUM(C39,E39,G39,I39,K39)","v":0.22108309087337685}]
[null,"Combustíveis e lubrificantes automotivos",10200,"-","-",10189.92,"-","-","-","-","-","-","-","-","-","-",{"$f":"F40/C40","v":0.99901176470588238}]
[null,"Contração de empresa para prestação de serviços gráficos",5581.76,4999.72,"-","-","-","-","-","-","-","-","-","-","-","-",{"$f":"D41/C41","v":0.8957246459897954}]
[null,"Pagamento de auxílio a pesquisador",25115,14203.46,17997.52,4108.55,12082.41,9034.66,14622.23,1844.64,24935.84,2155.8000000000002,"-",16799.48,"-",2865.53,{"$f":"SUM(P42,N42,L42,J42,H42,F42,D42)/SUM(C42,E42,G42,I42,K42)","v":0.53836944476692028}]
[null,"Pagamento de diária no estado",57559,35577,15848.08,32925.699999999997,30961.18,11819.6,67102,14071.5,65505.26,10715,"-",36904,"-",11682,{"$f":"SUM(P43,N43,L43,J43,H43,F43,D43)/SUM(C43,E43,G43,I43,K43)","v":0.64856825717694377}]
[null,"Pagamento de diárias a colaboradores eventuais",42144,21241.9,7449.03,"-",28695.73,9370.4,15277.13,7671.8,12925,5304.1,"-",null,"-","-",{"$f":"SUM(L44,J44,H44,D44)/SUM(C44,E44,G44,I44,K44)","v":0.40931388591080425}]
[null,"Pagamento de diárias no país",23769,10548.7,12562.26,"-",22654.52,20302,31741.42,6985.18,29706.76,12829.6,"-",5900.6,"-",7736.7,{"$f":"SUM(P45,N45,L45,J45,H45,D45)/SUM(C45,E45,G45,I45,K45)","v":0.53392564688564592}]
[null,"Pagamento de passagem para o exterior",7000,"-",5000,"-",7551.54,"-",5000,"-","-","-","-","-","-","-",0]
[null,"Pagamento de serviços de manutenção",4885,600,"-","-","-","-","-","-","-","-","-","-","-","-",{"$f":"D47/C47","v":0.12282497441146366}]
[null,"Pagamento de taxa de inscrição",5150,"-","-","-","-","-","-","-","-","-","-","-","-","-",0]
[null,"Serviços de análise e pesquisa científica",9146,"-","-","-","-","-","-","-","-","-","-","-","-","-",0]
[null,"Total geral ",331761.76,126102.19,82279.149999999994,61139.57,151030.18,60390.26,157413.73000000001,36413.699999999997,154296.56,32276.5,"-",59604.08,"-",{"$f":"SUM(P30:P49)","v":28188.73},{"$f":"SUM(P50,N50,L50,J50,H50,F50,D50)/SUM(C50,E50,G50,I50,K50)","v":0.46090740430641897}]
[null,"*Considerando-se o saldo acumulado"]
[]
[null,"Dados referem-se ao 1º semestre de 2022"]
[]
[null,"Fonte: Financeiro PROPPI, julho 2022"]

{"sheet":"ProfHistoria","index":40,"n_rows":38,"n_cols":10,"rows_kept":38,"cut":false,"hidden":false,"merged":[[14,1,15,1],[14,2,14,3],[14,9,15,9]]}
[]
[]
[]
[]
[]
[]
[]
[]
[]
[]
[null,"Objetivo: Indicar o montante de recursos aprovados e executados referente ao Convênio PROFHISTÓRIA"]
[]
[]
[null,"Quadro - Valor monetário referente ao recurso aprovado e ao efetivamente executado do Convênio PROFHISTÓRIA"]
[null,"Rubricas ",2017,null,2018,2019,2020,2021,2022,"Total geral Executado (%) "]
[null,null,"Valor aprovado","Valor executado no ano*","Valor executado no ano*","Valor executado no ano*","Valor executado no ano*","Valor executado no ano*","Valor executado no ano*"]
[null,"Material de expediente",3000,"-","-","-","-","-","-",0]
[null,"Impressão de Material didático",5850,"-","-","-","-","-","-",0]
[null,"Reprografia",168,"-","-","-","-","-","-",0]
[null,"Serviço de Postagem",550,"-","-","-","-","-","-",0]
[null,"Aluguel de Veículos",4500,"-","-","-","-","-","-",0]
[null,"Diárias para Discentes",2240,"-","-","-","-","-","-",0]
[null,"Passagens para Discentes",6000,"-","-","-","-","-","-",0]
[null,"Diárias para Palestrantes",1344,"-",885,"-","-","-","-",{"$f":"SUM(D24:I24)/C24","v":0.6584821428571429}]
[null,"Passagens para palestrantes evento local do Profhistória",6000,"-",1341.64,"-","-","-","-",{"$f":"SUM(D25:I25)/C25","v":0.22360666666666668}]
[null,"Diárias para o encontro anual do Profhistória",3360,"-","-","-",3895.8,"-",655.5,1.3545535714285715]
[null,"Passagens para o encontro anual do Profhistória",18000,"-",1329.41,"-","-","-",1681.4,0.16726722222222223]
[null,"Diária Membro Externo BANCA",6048,"-",1639.5,354,354,"-","-",0.38814484126984128]
[null,"Ressarcimento de Combustível para membro externo",3200,"-","-","-","-","-","-",0]
[null,"Passagens professor externo participação em Banca",31500,"-",1433.84,"-","-","-","-",4.5518730158730154E-2]
[null,"Diárias para coordenador representante encontros anuais e regionais",2240,"-","-",879.7,1263.2,"-",655.5,1.2492857142857143]
[null,"Passagens coordenador ou representante encontros anuais ou regionais",6000,"-","-",1770.18,"-","-",1681.4,0.57526333333333335]
[null,"Total geral",100000,0,6629.39,3003.88,5513,"-",{"$f":"SUM(I17:I32)","v":4673.8},{"$f":"SUM(I33,G33,F33,E33)/C33","v":0.19820070000000001}]
[null,"*Considerando-se o saldo acumulado"]
[]
[null,"Dados referem-se ao 1º semestre de 2022"]
[]
[null,"Fonte: Financeiro PROPPI julho 2022"]

{"sheet":"ProfLetras CG","index":41,"n_rows":36,"n_cols":11,"rows_kept":36,"cut":false,"hidden":false,"merged":[[14,2,14,3],[14,1,15,1],[14,10,15,10]]}
[]
[]
[]
[]
[]
[]
[]
[]
[]
[]
[null,"Objetivo: Indicar o montante de recursos aprovados e executados dos programas de pós-graduação referente ao Convênio PROFLETRAS Campo Grande "]
[]
[]
[null,"Quadro - Valor monetário referente ao recurso aprovado e ao efetivamente executado do Convênio PROFLETRAS Campo Grande "]
[null,"Rubricas","2015-2016",null,2017,2018,2019,2020,2021,2022,"Total geral Executado (%) "]
[null,null,"Valor aprovado ","Valor executado no ano*","Valor executado no ano*","Valor executado no ano*","Valor executado no ano*","Valor executado no ano*","Valor executado no ano*","Valor executado no ano*"]
[null,"Material de expediente",6000,"-","-","-","-","-","-",null,0]
[null,"Reprografia",6000,"-","-","-","-","-","-",null,0]
[null,"Impressão de Material didático",15000,"-","-","-","-","-","-",null,0]
[null,"Reprodução de Mídia",150,"-","-","-","-","-","-",null,0]
[null,"Postagem",2000,"-","-","-","-","-","-",null,0]
[null,"Passagens aéreas p/ encontros regionais de coordenadores em evento Científico",3000,"-","-","-","-","-","-",null,0]
[null,"Passagens aéreas p/ encontro anual coordenadores/professores/discentes",13500,"-",3695,2089.4499999999998,2399.64,"-","-",null,0.60622888888888904]
[null,"Passagens aéreas para membro externo",30000,"-","-",3191.91,2000,"-","-",null,0.173063666666667]
[null,"Adicional de embarque e desembarque encontro Regional",190,"-","-","-","-","-","-",null,0]
[null,"Adicional de embarque e desembarque encontro anual",855,"-","-","-","-","-","-",null,0]
[null,"Adicional de embarque e desembarque para membro externo",1900,"-","-","-","-","-","-",null,0]
[null,"Diárias para coordenadores encontro Regional",1121,"-","-",1004.3,"-","-","-",null,0.89589652096342498]
[null,"Diárias para encontro anual e/ou outros eventos científicos (coordenadores,docente,e discente)",5044.3999999999996,"-",1676.8,1847.3,1328.1,"-","-",null,0.96189834271667596]
[null,"Diárias para membro Externo",11210,"-","-",990.8,2030.2,"-","-",null,0.26949152542372901]
[null,"Outros serviços. Terc. Pessoa Jurídica (Edição e Editoração de e-books + aluguel de veículos)",2589.5,"-","-","-","-","-","-",null,0]
[null,"Total",98559.9,0,5371.8,9123.76,7757.94,0,"-",null,0.22578655213733001]
[null,"*Considerando-se o saldo acumulado"]
[]
[null,"Dados referem-se ao 1º semestre de 2022"]
[null,"Fonte: Financeiro PROPPI julho 2022"]

{"sheet":"ProfLetras Ddos","index":42,"n_rows":38,"n_cols":11,"rows_kept":38,"cut":false,"hidden":false,"merged":[[14,10,15,10],[14,1,15,1]]}
[]
[]
[]
[]
[]
[]
[]
[]
[]
[]
[null,"Objetivo: Indicar o montante de recursos aprovados e executados referente ao Convênio PROFLETRAS Dourados"]
[]
[]
[null,"Quadro - Valor monetário referente ao recurso aprovado e ao efetivamente executado do Convênio PROFLETRAS Dourados "]
[null,"Rubricas",2016,null,2017,2018,2019,2020,2021,2022,"Total geral Executado (%) "]
[null,null,"Valor aprovado ","Valor executado no ano*","Valor executado no ano*","Valor executado no ano*","Valor executado no ano*","Valor executado no ano*","Valor executado no ano*","Valor executado no ano*"]
[null,"Material de expediente",1200,"-","-","-","-","-","-",null,0]
[null,"Reprografia",2100.6,"-","-","-","-","-","-",null,0]
[null,"Impressão de Material didático",10200,"-","-","-","-","-","-",null,0]
[null,"Reprodução de Mídia",228,"-","-","-","-","-","-",null,0]
[null,"Postagem",500,"-","-","-","-","-","-",null,0]
[null,"Passagens aéreas p/ encontros regionais de coordenadores em evento Científico",9000,"-","-","-",3764.72,"-","-",null,0.41830222222222202]
[null,"Passagens aéreas p/ encontro anual coordenadores/professores/discentes",13500,"-","-",1564.52,"-","-","-",null,0.11589037037037]
[null,"Passagens aéreas para membro externo",37500,"-","-","-","-","-","-",null,0]
[null,"Adicional de embarque e desembarque encontro Regional",570,"-","-","-","-","-","-",null,0]
[null,"Adicional de embarque e desembarque encontro anual",855,"-","-","-","-","-","-",null,0]
[null,"Adicional de embarque e desembarque para membro externo",2375,"-","-","-","-","-","-",null,0]
[null,"Diárias para coordenadores",2690.4,"-","-","-",1050.8,"-","-",null,0.39057389235801399]
[null,"Diárias para encontro anual e/ou outros eventos científicos (coordenadores,docente,e discente)",8071.02,"-","-",2556.5,"-","-","-",null,0.31675054701883998]
[null,"Diárias para membro Externo",11210,"-","-",442.5,265.5,"-","-",null,6.3157894736842093E-2]
[null,"Aluguel de veículos","-","-","-","-","-","-","-",null,"-"]
[null,"Outros serviços. Terc. Pessoa Jurídica (Edição e Editoração de e-books","-","-","-","-","-","-","-",null,"-"]
[null,"Total geral",100000.02,0,0,4563.5200000000004,5081.0200000000004,0,"-",null,9.64453807109239E-2]
[null,"*Considerando-se o saldo acumulado"]
[]
[null,"Dados referem-se ao 1º semestre de 2022"]
[]
[null,"Fonte: Financeiro PROPPI julho 2022"]

{"sheet":"ProfMat Ddos","index":43,"n_rows":29,"n_cols":10,"rows_kept":29,"cut":false,"hidden":false,"merged":[[14,9,15,9],[14,1,15,1]]}
[]
[]
[]
[]
[]
[]
[]
[]
[]
[]
[null,"Objetivo: Indicar o montante de recursos aprovados e executados referente ao Convênio PROFMAT Dourados"]
[]
[]
[null,"Quadro - Valor monetário referente ao recurso aprovado e ao efetivamente executado do Convênio PROFMAT Dourados"]
[null,"Rubricas ",2017,null,2018,2019,2020,2021,2022,"Total geral Executado (%) "]
[null,null,"Valor aprovado ","Valor executado no ano*","Valor executado no ano*","Valor executado no ano*","Valor executado no ano*","Valor executado no ano*","Valor executado no ano*"]
[null,"Resma de Papel sulfite A4 com 500 folhas",600,"-","-","-","-","-","-",0]
[null,"Resma de Papel Almaço 400 folhas",600,"-","-","-","-","-","-",0]
[null,"Pincel Recarregável",205,"-","-","-","-","-","-",0]
[null,"Cartucho para pincel recarregável para quadro branco",445,"-","-","-","-","-","-",0]
[null,"Passagens aéreas nacionais  p/ encontros, congressos e participação em bancas ( coordenadores, professores, discentes)",42000,"-",7516.11,2137.73,"-","-","-",0.22985333333333299]
[null,"Passagens aéreas para eventos internacionais (coordenadores, docente e discente)",25000,"-","-","-","-","-","-",0]
[null,"Diárias para encontros, congressos, e participação em bancas do PROFMAT (coordenadores, docente e discente)",22400,1068.5,3541.8,88.5,"-","-","-",0.20976785714285701]
[null,"Diárias para encontros, congressos internacionais (coordenadores, docente e discente)",8750,"-","-","-",1599.5,"-","-",0]
[null,"Total",100000,1068.5,11057.91,2226.23,1599.5,"-",null,0.15952140000000001]
[null,"*Considerando-se o saldo acumulado"]
[]
[null,"Dados referem-se ao 1º semestre de 2022"]
[null,"Fonte: Financeiro PROPPI julho 2022"]